{"text_format":"3","workbook":"xlsx","n_sheets":3,"sheets":["ロードマップ データ","アジャイル ロードマップ","詳細情報"],"not_rendered":{"defined_names":5},"read":"whole","date_system":"1900"}

{"sheet":"ロードマップ データ","index":0,"n_rows":13,"n_cols":7,"rows_kept":13,"merged":[[12,1,12,4]]}
["このワークシートのロードマップ データ テーブルに重要なマイルストーンまたはアクティビティを入力して、アジャイル ロードマップを作成します。\nこのワークシートのタイトルは、セル B1 にあります。\nこのワークシートを使用する方法 (スクリーン リーダーの説明など) は、\"詳細情報\" ワークシートにあります。\nさらなる説明については、列 A を下方に移動します。","アジャイル タイムライン データ"]
["テーブルの見出しは、セル B2 から E2 にあります。見出しのフィルターを使用して、テーブルを並べ替え、特定のアイテムを検索します。\nアジャイル ロードマップは、テーブルが優先度で昇順に並べ替えられてから、マイルストーンまたはアクティビティで並べ替えられる場合に最適です。\nサンプル データは、ロードマップ データ テーブルのセル B3 から E12 にあります。\nマイルストーンまたはアクティビティが完了したら、対応する結果フィールドを更新して、アジャイル ロードマップ ワークシートに結果を表示します。影響を与えずにマイルストーンを強調表示するには、「変更なし」と入力します。\n次の説明については、セル A13 に移動します。\n","ターゲット","マイルストーンまたはアクティビティ","優先度","結果",null,"<-- テーブルを優先度およびマイルストーンまたはアクティビティで昇順に並べ替える"]
[null,"現在","アクティビティ 1\nビルド プロトタイプ","1 - 高",null,null,"<-- 完了したマイルストーンごとの結果を追加する影響を与えずにマイルストーンを強調表示するには、「変更なし」と入力します。"]
[null,"近い将来","アクティビティ 2\nデモ プロトタイプ","1 - 高"]
[null,"現在","アクティビティ 6","1 - 高"]
[null,"将来","アクティビティ 7\nステージ 1 の実装のアウトソース開発","1 - 高"]
[null,"完了","アクティビティ 9\nステージ 1 の承認","1 - 高","10% 減"]
[null,"将来","アクティビティ 10","2 - 中"]
[null,"近い将来","アクティビティ 8","2 - 中"]
[null,"完了","アクティビティ 3","3 - 低","変更なし"]
[null,"将来","アクティビティ 4","3 - 低"]
[null,"現在","アクティビティ 5","3 - 低"]
["この線の上のテーブルに新しい行を挿入して、新しいアイテムを追加します。\nこれは、このワークシートにおける最後の説明です。","この線の上に新しい行を挿入して、新しいアイテムを追加します"]

{"sheet":"アジャイル ロードマップ","index":1,"n_rows":100,"n_cols":8,"rows_kept":100}
["このワークシートには、ロードマップ データ ワークシートからのマイルストーンとアクティビティを表示するアジャイル ロードマップがあります。\nタイトルはセル B1 にあります。\n\"変更なし\" というフレーズを含む結果は、薄いオレンジ色 (rgb(255, 230, 210)) で強調表示されます。\n完了したマイルストーンまたはアクティビティは、薄い緑色 (rgb(237,251,219)) で強調表示されます。","アジャイル ロードマップ"]
["グラフの見出しは、セル B2、D2、F2、H2 にあります。これらは、完了、現在、近い将来、将来を表します。ロードマップ データ ワークシートでロードマップ データ テーブルのターゲット選択値を変更する場合は、これらの見出しを変更します。\nセル B3 から H20 には、この行の見出しに対するマイルストーンとアクティビティが含まれます。\nマイルストーンとアクティビティは、ロードマップデータ ワークシートで作成されます。\nこのワークシート内のエントリを変更したり、削除したりしないでください。このワークシート内のコンテンツを更新する場合は、ロードマップ データ ワークシート内のロードマップ データ テーブルを更新します。\nこれは、このワークシートにおける最後の説明です。","完了",null,"現在",null,"近い将来",null,"将来"]
[null,{"$f":"IFERROR(INDEX(アクティビティ,SMALL(IF(ターゲット=$B$2,ROW(アクティビティ)-MIN(ROW(アクティビティ))+1),ROWS($B$3:B3)))&\" \"&CHAR(10)&(INDEX(結果,SMALL(IF(ターゲット=$B$2,ROW(結果)-MIN(ROW(結果))+1),ROWS($B$3:B3))))&CHAR(10),\"\")","v":"アクティビティ 9\nステージ 1 の承認 \n10% 減\n"},null,{"$f":"IFERROR(INDEX(アクティビティ,SMALL(IF(ターゲット=$D$2,ROW(アクティビティ)-MIN(ROW(アクティビティ))+1),ROWS($B$3:B3)))&CHAR(10),\"\")","v":"アクティビティ 1\nビルド プロトタイプ\n"},null,{"$f":"IFERROR(INDEX(アクティビティ,SMALL(IF(ターゲット=$F$2,ROW(アクティビティ)-MIN(ROW(アクティビティ))+1),ROWS($B$3:B3)))&CHAR(10),\"\")","v":"アクティビティ 2\nデモ プロトタイプ\n"},null,{"$f":"IFERROR(INDEX(アクティビティ,SMALL(IF(ターゲット=$H$2,ROW(アクティビティ)-MIN(ROW(アクティビティ))+1),ROWS($B$3:B3)))&CHAR(10),\"\")","v":"アクティビティ 7\nステージ 1 の実装のアウトソース開発\n"}]
[null,{"$f":"IFERROR(INDEX(アクティビティ,SMALL(IF(ターゲット=$B$2,ROW(アクティビティ)-MIN(ROW(アクティビティ))+1),ROWS($B$3:B4)))&\" \"&CHAR(10)&(INDEX(結果,SMALL(IF(ターゲット=$B$2,ROW(結果)-MIN(ROW(結果))+1),ROWS($B$3:B4))))&CHAR(10),\"\")","v":"アクティビティ 3 \n変更なし\n"},null,{"$f":"IFERROR(INDEX(アクティビティ,SMALL(IF(ターゲット=$D$2,ROW(アクティビティ)-MIN(ROW(アクティビティ))+1),ROWS($B$3:B4)))&CHAR(10),\"\")","v":"アクティビティ 6\n"},null,{"$f":"IFERROR(INDEX(アクティビティ,SMALL(IF(ターゲット=$F$2,ROW(アクティビティ)-MIN(ROW(アクティビティ))+1),ROWS($B$3:B4)))&CHAR(10),\"\")","v":"アクティビティ 8\n"},null,{"$f":"IFERROR(INDEX(アクティビティ,SMALL(IF(ターゲット=$H$2,ROW(アクティビティ)-MIN(ROW(アクティビティ))+1),ROWS($B$3:B4)))&CHAR(10),\"\")","v":"アクティビティ 10\n"}]
[null,{"$f":"IFERROR(INDEX(アクティビティ,SMALL(IF(ターゲット=$B$2,ROW(アクティビティ)-MIN(ROW(アクティビティ))+1),ROWS($B$3:B5)))&\" \"&CHAR(10)&(INDEX(結果,SMALL(IF(ターゲット=$B$2,ROW(結果)-MIN(ROW(結果))+1),ROWS($B$3:B5))))&CHAR(10),\"\")","v":""},null,{"$f":"IFERROR(INDEX(アクティビティ,SMALL(IF(ターゲット=$D$2,ROW(アクティビティ)-MIN(ROW(アクティビティ))+1),ROWS($B$3:B5)))&CHAR(10),\"\")","v":"アクティビティ 5\n"},null,{"$f":"IFERROR(INDEX(アクティビティ,SMALL(IF(ターゲット=$F$2,ROW(アクティビティ)-MIN(ROW(アクティビティ))+1),ROWS($B$3:B5)))&CHAR(10),\"\")","v":""},null,{"$f":"IFERROR(INDEX(アクティビティ,SMALL(IF(ターゲット=$H$2,ROW(アクティビティ)-MIN(ROW(アクティビティ))+1),ROWS($B$3:B5)))&CHAR(10),\"\")","v":"アクティビティ 4\n"}]
[null,{"$f":"IFERROR(INDEX(アクティビティ,SMALL(IF(ターゲット=$B$2,ROW(アクティビティ)-MIN(ROW(アクティビティ))+1),ROWS($B$3:B6)))&\" \"&CHAR(10)&(INDEX(結果,SMALL(IF(ターゲット=$B$2,ROW(結果)-MIN(ROW(結果))+1),ROWS($B$3:B6))))&CHAR(10),\"\")","v":""},null,{"$f":"IFERROR(INDEX(アクティビティ,SMALL(IF(ターゲット=$D$2,ROW(アクティビティ)-MIN(ROW(アクティビティ))+1),ROWS($B$3:B6)))&CHAR(10),\"\")","v":""},null,{"$f":"IFERROR(INDEX(アクティビティ,SMALL(IF(ターゲット=$F$2,ROW(アクティビティ)-MIN(ROW(アクティビティ))+1),ROWS($B$3:B6)))&CHAR(10),\"\")","v":""},null,{"$f":"IFERROR(INDEX(アクティビティ,SMALL(IF(ターゲット=$H$2,ROW(アクティビティ)-MIN(ROW(アクティビティ))+1),ROWS($B$3:B6)))&CHAR(10),\"\")","v":""}]
[null,{"$f":"IFERROR(INDEX(アクティビティ,SMALL(IF(ターゲット=$B$2,ROW(アクティビティ)-MIN(ROW(アクティビティ))+1),ROWS($B$3:B7)))&\" \"&CHAR(10)&(INDEX(結果,SMALL(IF(ターゲット=$B$2,ROW(結果)-MIN(ROW(結果))+1),ROWS($B$3:B7))))&CHAR(10),\"\")","v":""},null,{"$f":"IFERROR(INDEX(アクティビティ,SMALL(IF(ターゲット=$D$2,ROW(アクティビティ)-MIN(ROW(アクティビティ))+1),ROWS($B$3:B7)))&CHAR(10),\"\")","v":""},null,{"$f":"IFERROR(INDEX(アクティビティ,SMALL(IF(ターゲット=$F$2,ROW(アクティビティ)-MIN(ROW(アクティビティ))+1),ROWS($B$3:B7)))&CHAR(10),\"\")","v":""},null,{"$f":"IFERROR(INDEX(アクティビティ,SMALL(IF(ターゲット=$H$2,ROW(アクティビティ)-MIN(ROW(アクティビティ))+1),ROWS($B$3:B7)))&CHAR(10),\"\")","v":""}]
[null,{"$f":"IFERROR(INDEX(アクティビティ,SMALL(IF(ターゲット=$B$2,ROW(アクティビティ)-MIN(ROW(アクティビティ))+1),ROWS($B$3:B8)))&\" \"&CHAR(10)&(INDEX(結果,SMALL(IF(ターゲット=$B$2,ROW(結果)-MIN(ROW(結果))+1),ROWS($B$3:B8))))&CHAR(10),\"\")","v":""},null,{"$f":"IFERROR(INDEX(アクティビティ,SMALL(IF(ターゲット=$D$2,ROW(アクティビティ)-MIN(ROW(アクティビティ))+1),ROWS($B$3:B8)))&CHAR(10),\"\")","v":""},null,{"$f":"IFERROR(INDEX(アクティビティ,SMALL(IF(ターゲット=$F$2,ROW(アクティビティ)-MIN(ROW(アクティビティ))+1),ROWS($B$3:B8)))&CHAR(10),\"\")","v":""},null,{"$f":"IFERROR(INDEX(アクティビティ,SMALL(IF(ターゲット=$H$2,ROW(アクティビティ)-MIN(ROW(アクティビティ))+1),ROWS($B$3:B8)))&CHAR(10),\"\")","v":""}]
[null,{"$f":"IFERROR(INDEX(アクティビティ,SMALL(IF(ターゲット=$B$2,ROW(アクティビティ)-MIN(ROW(アクティビティ))+1),ROWS($B$3:B9)))&\" \"&CHAR(10)&(INDEX(結果,SMALL(IF(ターゲット=$B$2,ROW(結果)-MIN(ROW(結果))+1),ROWS($B$3:B9))))&CHAR(10),\"\")","v":""},null,{"$f":"IFERROR(INDEX(アクティビティ,SMALL(IF(ターゲット=$D$2,ROW(アクティビティ)-MIN(ROW(アクティビティ))+1),ROWS($B$3:B9)))&CHAR(10),\"\")","v":""},null,{"$f":"IFERROR(INDEX(アクティビティ,SMALL(IF(ターゲット=$F$2,ROW(アクティビティ)-MIN(ROW(アクティビティ))+1),ROWS($B$3:B9)))&CHAR(10),\"\")","v":""},null,{"$f":"IFERROR(INDEX(アクティビティ,SMALL(IF(ターゲット=$H$2,ROW(アクティビティ)-MIN(ROW(アクティビティ))+1),ROWS($B$3:B9)))&CHAR(10),\"\")","v":""}]
[null,{"$f":"IFERROR(INDEX(アクティビティ,SMALL(IF(ターゲット=$B$2,ROW(アクティビティ)-MIN(ROW(アクティビティ))+1),ROWS($B$3:B10)))&\" \"&CHAR(10)&(INDEX(結果,SMALL(IF(ターゲット=$B$2,ROW(結果)-MIN(ROW(結果))+1),ROWS($B$3:B10))))&CHAR(10),\"\")","v":""},null,{"$f":"IFERROR(INDEX(アクティビティ,SMALL(IF(ターゲット=$D$2,ROW(アクティビティ)-MIN(ROW(アクティビティ))+1),ROWS($B$3:B10)))&CHAR(10),\"\")","v":""},null,{"$f":"IFERROR(INDEX(アクティビティ,SMALL(IF(ターゲット=$F$2,ROW(アクティビティ)-MIN(ROW(アクティビティ))+1),ROWS($B$3:B10)))&CHAR(10),\"\")","v":""},null,{"$f":"IFERROR(INDEX(アクティビティ,SMALL(IF(ターゲット=$H$2,ROW(アクティビティ)-MIN(ROW(アクティビティ))+1),ROWS($B$3:B10)))&CHAR(10),\"\")","v":""}]
[null,{"$f":"IFERROR(INDEX(アクティビティ,SMALL(IF(ターゲット=$B$2,ROW(アクティビティ)-MIN(ROW(アクティビティ))+1),ROWS($B$3:B11)))&\" \"&CHAR(10)&(INDEX(結果,SMALL(IF(ターゲット=$B$2,ROW(結果)-MIN(ROW(結果))+1),ROWS($B$3:B11))))&CHAR(10),\"\")","v":""},null,{"$f":"IFERROR(INDEX(アクティビティ,SMALL(IF(ターゲット=$D$2,ROW(アクティビティ)-MIN(ROW(アクティビティ))+1),ROWS($B$3:B11)))&CHAR(10),\"\")","v":""},null,{"$f":"IFERROR(INDEX(アクティビティ,SMALL(IF(ターゲット=$F$2,ROW(アクティビティ)-MIN(ROW(アクティビティ))+1),ROWS($B$3:B11)))&CHAR(10),\"\")","v":""},null,{"$f":"IFERROR(INDEX(アクティビティ,SMALL(IF(ターゲット=$H$2,ROW(アクティビティ)-MIN(ROW(アクティビティ))+1),ROWS($B$3:B11)))&CHAR(10),\"\")","v":""}]
[null,{"$f":"IFERROR(INDEX(アクティビティ,SMALL(IF(ターゲット=$B$2,ROW(アクティビティ)-MIN(ROW(アクティビティ))+1),ROWS($B$3:B12)))&\" \"&CHAR(10)&(INDEX(結果,SMALL(IF(ターゲット=$B$2,ROW(結果)-MIN(ROW(結果))+1),ROWS($B$3:B12))))&CHAR(10),\"\")","v":""},null,{"$f":"IFERROR(INDEX(アクティビティ,SMALL(IF(ターゲット=$D$2,ROW(アクティビティ)-MIN(ROW(アクティビティ))+1),ROWS($B$3:B12)))&CHAR(10),\"\")","v":""},null,{"$f":"IFERROR(INDEX(アクティビティ,SMALL(IF(ターゲット=$F$2,ROW(アクティビティ)-MIN(ROW(アクティビティ))+1),ROWS($B$3:B12)))&CHAR(10),\"\")","v":""},null,{"$f":"IFERROR(INDEX(アクティビティ,SMALL(IF(ターゲット=$H$2,ROW(アクティビティ)-MIN(ROW(アクティビティ))+1),ROWS($B$3:B12)))&CHAR(10),\"\")","v":""}]
[null,{"$f":"IFERROR(INDEX(アクティビティ,SMALL(IF(ターゲット=$B$2,ROW(アクティビティ)-MIN(ROW(アクティビティ))+1),ROWS($B$3:B13)))&\" \"&CHAR(10)&(INDEX(結果,SMALL(IF(ターゲット=$B$2,ROW(結果)-MIN(ROW(結果))+1),ROWS($B$3:B13))))&CHAR(10),\"\")","v":""},null,{"$f":"IFERROR(INDEX(アクティビティ,SMALL(IF(ターゲット=$D$2,ROW(アクティビティ)-MIN(ROW(アクティビティ))+1),ROWS($B$3:B13)))&CHAR(10),\"\")","v":""},null,{"$f":"IFERROR(INDEX(アクティビティ,SMALL(IF(ターゲット=$F$2,ROW(アクティビティ)-MIN(ROW(アクティビティ))+1),ROWS($B$3:B13)))&CHAR(10),\"\")","v":""},null,{"$f":"IFERROR(INDEX(アクティビティ,SMALL(IF(ターゲット=$H$2,ROW(アクティビティ)-MIN(ROW(アクティビティ))+1),ROWS($B$3:B13)))&CHAR(10),\"\")","v":""}]
[null,{"$f":"IFERROR(INDEX(アクティビティ,SMALL(IF(ターゲット=$B$2,ROW(アクティビティ)-MIN(ROW(アクティビティ))+1),ROWS($B$3:B14)))&\" \"&CHAR(10)&(INDEX(結果,SMALL(IF(ターゲット=$B$2,ROW(結果)-MIN(ROW(結果))+1),ROWS($B$3:B14))))&CHAR(10),\"\")","v":""},null,{"$f":"IFERROR(INDEX(アクティビティ,SMALL(IF(ターゲット=$D$2,ROW(アクティビティ)-MIN(ROW(アクティビティ))+1),ROWS($B$3:B14)))&CHAR(10),\"\")","v":""},null,{"$f":"IFERROR(INDEX(アクティビティ,SMALL(IF(ターゲット=$F$2,ROW(アクティビティ)-MIN(ROW(アクティビティ))+1),ROWS($B$3:B14)))&CHAR(10),\"\")","v":""},null,{"$f":"IFERROR(INDEX(アクティビティ,SMALL(IF(ターゲット=$H$2,ROW(アクティビティ)-MIN(ROW(アクティビティ))+1),ROWS($B$3:B14)))&CHAR(10),\"\")","v":""}]
[null,{"$f":"IFERROR(INDEX(アクティビティ,SMALL(IF(ターゲット=$B$2,ROW(アクティビティ)-MIN(ROW(アクティビティ))+1),ROWS($B$3:B15)))&\" \"&CHAR(10)&(INDEX(結果,SMALL(IF(ターゲット=$B$2,ROW(結果)-MIN(ROW(結果))+1),ROWS($B$3:B15))))&CHAR(10),\"\")","v":""},null,{"$f":"IFERROR(INDEX(アクティビティ,SMALL(IF(ターゲット=$D$2,ROW(アクティビティ)-MIN(ROW(アクティビティ))+1),ROWS($B$3:B15)))&CHAR(10),\"\")","v":""},null,{"$f":"IFERROR(INDEX(アクティビティ,SMALL(IF(ターゲット=$F$2,ROW(アクティビティ)-MIN(ROW(アクティビティ))+1),ROWS($B$3:B15)))&CHAR(10),\"\")","v":""},null,{"$f":"IFERROR(INDEX(アクティビティ,SMALL(IF(ターゲット=$H$2,ROW(アクティビティ)-MIN(ROW(アクティビティ))+1),ROWS($B$3:B15)))&CHAR(10),\"\")","v":""}]
[null,{"$f":"IFERROR(INDEX(アクティビティ,SMALL(IF(ターゲット=$B$2,ROW(アクティビティ)-MIN(ROW(アクティビティ))+1),ROWS($B$3:B16)))&\" \"&CHAR(10)&(INDEX(結果,SMALL(IF(ターゲット=$B$2,ROW(結果)-MIN(ROW(結果))+1),ROWS($B$3:B16))))&CHAR(10),\"\")","v":""},null,{"$f":"IFERROR(INDEX(アクティビティ,SMALL(IF(ターゲット=$D$2,ROW(アクティビティ)-MIN(ROW(アクティビティ))+1),ROWS($B$3:B16)))&CHAR(10),\"\")","v":""},null,{"$f":"IFERROR(INDEX(アクティビティ,SMALL(IF(ターゲット=$F$2,ROW(アクティビティ)-MIN(ROW(アクティビティ))+1),ROWS($B$3:B16)))&CHAR(10),\"\")","v":""},null,{"$f":"IFERROR(INDEX(アクティビティ,SMALL(IF(ターゲット=$H$2,ROW(アクティビティ)-MIN(ROW(アクティビティ))+1),ROWS($B$3:B16)))&CHAR(10),\"\")","v":""}]
[null,{"$f":"IFERROR(INDEX(アクティビティ,SMALL(IF(ターゲット=$B$2,ROW(アクティビティ)-MIN(ROW(アクティビティ))+1),ROWS($B$3:B17)))&\" \"&CHAR(10)&(INDEX(結果,SMALL(IF(ターゲット=$B$2,ROW(結果)-MIN(ROW(結果))+1),ROWS($B$3:B17))))&CHAR(10),\"\")","v":""},null,{"$f":"IFERROR(INDEX(アクティビティ,SMALL(IF(ターゲット=$D$2,ROW(アクティビティ)-MIN(ROW(アクティビティ))+1),ROWS($B$3:B17)))&CHAR(10),\"\")","v":""},null,{"$f":"IFERROR(INDEX(アクティビティ,SMALL(IF(ターゲット=$F$2,ROW(アクティビティ)-MIN(ROW(アクティビティ))+1),ROWS($B$3:B17)))&CHAR(10),\"\")","v":""},null,{"$f":"IFERROR(INDEX(アクティビティ,SMALL(IF(ターゲット=$H$2,ROW(アクティビティ)-MIN(ROW(アクティビティ))+1),ROWS($B$3:B17)))&CHAR(10),\"\")","v":""}]
[null,{"$f":"IFERROR(INDEX(アクティビティ,SMALL(IF(ターゲット=$B$2,ROW(アクティビティ)-MIN(ROW(アクティビティ))+1),ROWS($B$3:B18)))&\" \"&CHAR(10)&(INDEX(結果,SMALL(IF(ターゲット=$B$2,ROW(結果)-MIN(ROW(結果))+1),ROWS($B$3:B18))))&CHAR(10),\"\")","v":""},null,{"$f":"IFERROR(INDEX(アクティビティ,SMALL(IF(ターゲット=$D$2,ROW(アクティビティ)-MIN(ROW(アクティビティ))+1),ROWS($B$3:B18)))&CHAR(10),\"\")","v":""},null,{"$f":"IFERROR(INDEX(アクティビティ,SMALL(IF(ターゲット=$F$2,ROW(アクティビティ)-MIN(ROW(アクティビティ))+1),ROWS($B$3:B18)))&CHAR(10),\"\")","v":""},null,{"$f":"IFERROR(INDEX(アクティビティ,SMALL(IF(ターゲット=$H$2,ROW(アクティビティ)-MIN(ROW(アクティビティ))+1),ROWS($B$3:B18)))&CHAR(10),\"\")","v":""}]
[null,{"$f":"IFERROR(INDEX(アクティビティ,SMALL(IF(ターゲット=$B$2,ROW(アクティビティ)-MIN(ROW(アクティビティ))+1),ROWS($B$3:B19)))&\" \"&CHAR(10)&(INDEX(結果,SMALL(IF(ターゲット=$B$2,ROW(結果)-MIN(ROW(結果))+1),ROWS($B$3:B19))))&CHAR(10),\"\")","v":""},null,{"$f":"IFERROR(INDEX(アクティビティ,SMALL(IF(ターゲット=$D$2,ROW(アクティビティ)-MIN(ROW(アクティビティ))+1),ROWS($B$3:B19)))&CHAR(10),\"\")","v":""},null,{"$f":"IFERROR(INDEX(アクティビティ,SMALL(IF(ターゲット=$F$2,ROW(アクティビティ)-MIN(ROW(アクティビティ))+1),ROWS($B$3:B19)))&CHAR(10),\"\")","v":""},null,{"$f":"IFERROR(INDEX(アクティビティ,SMALL(IF(ターゲット=$H$2,ROW(アクティビティ)-MIN(ROW(アクティビティ))+1),ROWS($B$3:B19)))&CHAR(10),\"\")","v":""}]
[null,{"$f":"IFERROR(INDEX(アクティビティ,SMALL(IF(ターゲット=$B$2,ROW(アクティビティ)-MIN(ROW(アクティビティ))+1),ROWS($B$3:B20)))&\" \"&CHAR(10)&(INDEX(結果,SMALL(IF(ターゲット=$B$2,ROW(結果)-MIN(ROW(結果))+1),ROWS($B$3:B20))))&CHAR(10),\"\")","v":""},null,{"$f":"IFERROR(INDEX(アクティビティ,SMALL(IF(ターゲット=$D$2,ROW(アクティビティ)-MIN(ROW(アクティビティ))+1),ROWS($B$3:B20)))&CHAR(10),\"\")","v":""},null,{"$f":"IFERROR(INDEX(アクティビティ,SMALL(IF(ターゲット=$F$2,ROW(アクティビティ)-MIN(ROW(アクティビティ))+1),ROWS($B$3:B20)))&CHAR(10),\"\")","v":""},null,{"$f":"IFERROR(INDEX(アクティビティ,SMALL(IF(ターゲット=$H$2,ROW(アクティビティ)-MIN(ROW(アクティビティ))+1),ROWS($B$3:B20)))&CHAR(10),\"\")","v":""}]
[null,{"$f":"IFERROR(INDEX(アクティビティ,SMALL(IF(ターゲット=$B$2,ROW(アクティビティ)-MIN(ROW(アクティビティ))+1),ROWS($B$3:B21)))&\" \"&CHAR(10)&(INDEX(結果,SMALL(IF(ターゲット=$B$2,ROW(結果)-MIN(ROW(結果))+1),ROWS($B$3:B21))))&CHAR(10),\"\")","v":""},null,{"$f":"IFERROR(INDEX(アクティビティ,SMALL(IF(ターゲット=$D$2,ROW(アクティビティ)-MIN(ROW(アクティビティ))+1),ROWS($B$3:B21)))&CHAR(10),\"\")","v":""},null,{"$f":"IFERROR(INDEX(アクティビティ,SMALL(IF(ターゲット=$F$2,ROW(アクティビティ)-MIN(ROW(アクティビティ))+1),ROWS($B$3:B21)))&CHAR(10),\"\")","v":""},null,{"$f":"IFERROR(INDEX(アクティビティ,SMALL(IF(ターゲット=$H$2,ROW(アクティビティ)-MIN(ROW(アクティビティ))+1),ROWS($B$3:B21)))&CHAR(10),\"\")","v":""}]
[null,{"$f":"IFERROR(INDEX(アクティビティ,SMALL(IF(ターゲット=$B$2,ROW(アクティビティ)-MIN(ROW(アクティビティ))+1),ROWS($B$3:B22)))&\" \"&CHAR(10)&(INDEX(結果,SMALL(IF(ターゲット=$B$2,ROW(結果)-MIN(ROW(結果))+1),ROWS($B$3:B22))))&CHAR(10),\"\")","v":""},null,{"$f":"IFERROR(INDEX(アクティビティ,SMALL(IF(ターゲット=$D$2,ROW(アクティビティ)-MIN(ROW(アクティビティ))+1),ROWS($B$3:B22)))&CHAR(10),\"\")","v":""},null,{"$f":"IFERROR(INDEX(アクティビティ,SMALL(IF(ターゲット=$F$2,ROW(アクティビティ)-MIN(ROW(アクティビティ))+1),ROWS($B$3:B22)))&CHAR(10),\"\")","v":""},null,{"$f":"IFERROR(INDEX(アクティビティ,SMALL(IF(ターゲット=$H$2,ROW(アクティビティ)-MIN(ROW(アクティビティ))+1),ROWS($B$3:B22)))&CHAR(10),\"\")","v":""}]
[null,{"$f":"IFERROR(INDEX(アクティビティ,SMALL(IF(ターゲット=$B$2,ROW(アクティビティ)-MIN(ROW(アクティビティ))+1),ROWS($B$3:B23)))&\" \"&CHAR(10)&(INDEX(結果,SMALL(IF(ターゲット=$B$2,ROW(結果)-MIN(ROW(結果))+1),ROWS($B$3:B23))))&CHAR(10),\"\")","v":""},null,{"$f":"IFERROR(INDEX(アクティビティ,SMALL(IF(ターゲット=$D$2,ROW(アクティビティ)-MIN(ROW(アクティビティ))+1),ROWS($B$3:B23)))&CHAR(10),\"\")","v":""},null,{"$f":"IFERROR(INDEX(アクティビティ,SMALL(IF(ターゲット=$F$2,ROW(アクティビティ)-MIN(ROW(アクティビティ))+1),ROWS($B$3:B23)))&CHAR(10),\"\")","v":""},null,{"$f":"IFERROR(INDEX(アクティビティ,SMALL(IF(ターゲット=$H$2,ROW(アクティビティ)-MIN(ROW(アクティビティ))+1),ROWS($B$3:B23)))&CHAR(10),\"\")","v":""}]
[null,{"$f":"IFERROR(INDEX(アクティビティ,SMALL(IF(ターゲット=$B$2,ROW(アクティビティ)-MIN(ROW(アクティビティ))+1),ROWS($B$3:B24)))&\" \"&CHAR(10)&(INDEX(結果,SMALL(IF(ターゲット=$B$2,ROW(結果)-MIN(ROW(結果))+1),ROWS($B$3:B24))))&CHAR(10),\"\")","v":""},null,{"$f":"IFERROR(INDEX(アクティビティ,SMALL(IF(ターゲット=$D$2,ROW(アクティビティ)-MIN(ROW(アクティビティ))+1),ROWS($B$3:B24)))&CHAR(10),\"\")","v":""},null,{"$f":"IFERROR(INDEX(アクティビティ,SMALL(IF(ターゲット=$F$2,ROW(アクティビティ)-MIN(ROW(アクティビティ))+1),ROWS($B$3:B24)))&CHAR(10),\"\")","v":""},null,{"$f":"IFERROR(INDEX(アクティビティ,SMALL(IF(ターゲット=$H$2,ROW(アクティビティ)-MIN(ROW(アクティビティ))+1),ROWS($B$3:B24)))&CHAR(10),\"\")","v":""}]
[null,{"$f":"IFERROR(INDEX(アクティビティ,SMALL(IF(ターゲット=$B$2,ROW(アクティビティ)-MIN(ROW(アクティビティ))+1),ROWS($B$3:B25)))&\" \"&CHAR(10)&(INDEX(結果,SMALL(IF(ターゲット=$B$2,ROW(結果)-MIN(ROW(結果))+1),ROWS($B$3:B25))))&CHAR(10),\"\")","v":""},null,{"$f":"IFERROR(INDEX(アクティビティ,SMALL(IF(ターゲット=$D$2,ROW(アクティビティ)-MIN(ROW(アクティビティ))+1),ROWS($B$3:B25)))&CHAR(10),\"\")","v":""},null,{"$f":"IFERROR(INDEX(アクティビティ,SMALL(IF(ターゲット=$F$2,ROW(アクティビティ)-MIN(ROW(アクティビティ))+1),ROWS($B$3:B25)))&CHAR(10),\"\")","v":""},null,{"$f":"IFERROR(INDEX(アクティビティ,SMALL(IF(ターゲット=$H$2,ROW(アクティビティ)-MIN(ROW(アクティビティ))+1),ROWS($B$3:B25)))&CHAR(10),\"\")","v":""}]
[null,{"$f":"IFERROR(INDEX(アクティビティ,SMALL(IF(ターゲット=$B$2,ROW(アクティビティ)-MIN(ROW(アクティビティ))+1),ROWS($B$3:B26)))&\" \"&CHAR(10)&(INDEX(結果,SMALL(IF(ターゲット=$B$2,ROW(結果)-MIN(ROW(結果))+1),ROWS($B$3:B26))))&CHAR(10),\"\")","v":""},null,{"$f":"IFERROR(INDEX(アクティビティ,SMALL(IF(ターゲット=$D$2,ROW(アクティビティ)-MIN(ROW(アクティビティ))+1),ROWS($B$3:B26)))&CHAR(10),\"\")","v":""},null,{"$f":"IFERROR(INDEX(アクティビティ,SMALL(IF(ターゲット=$F$2,ROW(アクティビティ)-MIN(ROW(アクティビティ))+1),ROWS($B$3:B26)))&CHAR(10),\"\")","v":""},null,{"$f":"IFERROR(INDEX(アクティビティ,SMALL(IF(ターゲット=$H$2,ROW(アクティビティ)-MIN(ROW(アクティビティ))+1),ROWS($B$3:B26)))&CHAR(10),\"\")","v":""}]
[null,{"$f":"IFERROR(INDEX(アクティビティ,SMALL(IF(ターゲット=$B$2,ROW(アクティビティ)-MIN(ROW(アクティビティ))+1),ROWS($B$3:B27)))&\" \"&CHAR(10)&(INDEX(結果,SMALL(IF(ターゲット=$B$2,ROW(結果)-MIN(ROW(結果))+1),ROWS($B$3:B27))))&CHAR(10),\"\")","v":""},null,{"$f":"IFERROR(INDEX(アクティビティ,SMALL(IF(ターゲット=$D$2,ROW(アクティビティ)-MIN(ROW(アクティビティ))+1),ROWS($B$3:B27)))&CHAR(10),\"\")","v":""},null,{"$f":"IFERROR(INDEX(アクティビティ,SMALL(IF(ターゲット=$F$2,ROW(アクティビティ)-MIN(ROW(アクティビティ))+1),ROWS($B$3:B27)))&CHAR(10),\"\")","v":""},null,{"$f":"IFERROR(INDEX(アクティビティ,SMALL(IF(ターゲット=$H$2,ROW(アクティビティ)-MIN(ROW(アクティビティ))+1),ROWS($B$3:B27)))&CHAR(10),\"\")","v":""}]
[null,{"$f":"IFERROR(INDEX(アクティビティ,SMALL(IF(ターゲット=$B$2,ROW(アクティビティ)-MIN(ROW(アクティビティ))+1),ROWS($B$3:B28)))&\" \"&CHAR(10)&(INDEX(結果,SMALL(IF(ターゲット=$B$2,ROW(結果)-MIN(ROW(結果))+1),ROWS($B$3:B28))))&CHAR(10),\"\")","v":""},null,{"$f":"IFERROR(INDEX(アクティビティ,SMALL(IF(ターゲット=$D$2,ROW(アクティビティ)-MIN(ROW(アクティビティ))+1),ROWS($B$3:B28)))&CHAR(10),\"\")","v":""},null,{"$f":"IFERROR(INDEX(アクティビティ,SMALL(IF(ターゲット=$F$2,ROW(アクティビティ)-MIN(ROW(アクティビティ))+1),ROWS($B$3:B28)))&CHAR(10),\"\")","v":""},null,{"$f":"IFERROR(INDEX(アクティビティ,SMALL(IF(ターゲット=$H$2,ROW(アクティビティ)-MIN(ROW(アクティビティ))+1),ROWS($B$3:B28)))&CHAR(10),\"\")","v":""}]
[null,{"$f":"IFERROR(INDEX(アクティビティ,SMALL(IF(ターゲット=$B$2,ROW(アクティビティ)-MIN(ROW(アクティビティ))+1),ROWS($B$3:B29)))&\" \"&CHAR(10)&(INDEX(結果,SMALL(IF(ターゲット=$B$2,ROW(結果)-MIN(ROW(結果))+1),ROWS($B$3:B29))))&CHAR(10),\"\")","v":""},null,{"$f":"IFERROR(INDEX(アクティビティ,SMALL(IF(ターゲット=$D$2,ROW(アクティビティ)-MIN(ROW(アクティビティ))+1),ROWS($B$3:B29)))&CHAR(10),\"\")","v":""},null,{"$f":"IFERROR(INDEX(アクティビティ,SMALL(IF(ターゲット=$F$2,ROW(アクティビティ)-MIN(ROW(アクティビティ))+1),ROWS($B$3:B29)))&CHAR(10),\"\")","v":""},null,{"$f":"IFERROR(INDEX(アクティビティ,SMALL(IF(ターゲット=$H$2,ROW(アクティビティ)-MIN(ROW(アクティビティ))+1),ROWS($B$3:B29)))&CHAR(10),\"\")","v":""}]
[null,{"$f":"IFERROR(INDEX(アクティビティ,SMALL(IF(ターゲット=$B$2,ROW(アクティビティ)-MIN(ROW(アクティビティ))+1),ROWS($B$3:B30)))&\" \"&CHAR(10)&(INDEX(結果,SMALL(IF(ターゲット=$B$2,ROW(結果)-MIN(ROW(結果))+1),ROWS($B$3:B30))))&CHAR(10),\"\")","v":""},null,{"$f":"IFERROR(INDEX(アクティビティ,SMALL(IF(ターゲット=$D$2,ROW(アクティビティ)-MIN(ROW(アクティビティ))+1),ROWS($B$3:B30)))&CHAR(10),\"\")","v":""},null,{"$f":"IFERROR(INDEX(アクティビティ,SMALL(IF(ターゲット=$F$2,ROW(アクティビティ)-MIN(ROW(アクティビティ))+1),ROWS($B$3:B30)))&CHAR(10),\"\")","v":""},null,{"$f":"IFERROR(INDEX(アクティビティ,SMALL(IF(ターゲット=$H$2,ROW(アクティビティ)-MIN(ROW(アクティビティ))+1),ROWS($B$3:B30)))&CHAR(10),\"\")","v":""}]
[null,{"$f":"IFERROR(INDEX(アクティビティ,SMALL(IF(ターゲット=$B$2,ROW(アクティビティ)-MIN(ROW(アクティビティ))+1),ROWS($B$3:B31)))&\" \"&CHAR(10)&(INDEX(結果,SMALL(IF(ターゲット=$B$2,ROW(結果)-MIN(ROW(結果))+1),ROWS($B$3:B31))))&CHAR(10),\"\")","v":""},null,{"$f":"IFERROR(INDEX(アクティビティ,SMALL(IF(ターゲット=$D$2,ROW(アクティビティ)-MIN(ROW(アクティビティ))+1),ROWS($B$3:B31)))&CHAR(10),\"\")","v":""},null,{"$f":"IFERROR(INDEX(アクティビティ,SMALL(IF(ターゲット=$F$2,ROW(アクティビティ)-MIN(ROW(アクティビティ))+1),ROWS($B$3:B31)))&CHAR(10),\"\")","v":""},null,{"$f":"IFERROR(INDEX(アクティビティ,SMALL(IF(ターゲット=$H$2,ROW(アクティビティ)-MIN(ROW(アクティビティ))+1),ROWS($B$3:B31)))&CHAR(10),\"\")","v":""}]
[null,{"$f":"IFERROR(INDEX(アクティビティ,SMALL(IF(ターゲット=$B$2,ROW(アクティビティ)-MIN(ROW(アクティビティ))+1),ROWS($B$3:B32)))&\" \"&CHAR(10)&(INDEX(結果,SMALL(IF(ターゲット=$B$2,ROW(結果)-MIN(ROW(結果))+1),ROWS($B$3:B32))))&CHAR(10),\"\")","v":""},null,{"$f":"IFERROR(INDEX(アクティビティ,SMALL(IF(ターゲット=$D$2,ROW(アクティビティ)-MIN(ROW(アクティビティ))+1),ROWS($B$3:B32)))&CHAR(10),\"\")","v":""},null,{"$f":"IFERROR(INDEX(アクティビティ,SMALL(IF(ターゲット=$F$2,ROW(アクティビティ)-MIN(ROW(アクティビティ))+1),ROWS($B$3:B32)))&CHAR(10),\"\")","v":""},null,{"$f":"IFERROR(INDEX(アクティビティ,SMALL(IF(ターゲット=$H$2,ROW(アクティビティ)-MIN(ROW(アクティビティ))+1),ROWS($B$3:B32)))&CHAR(10),\"\")","v":""}]
[null,{"$f":"IFERROR(INDEX(アクティビティ,SMALL(IF(ターゲット=$B$2,ROW(アクティビティ)-MIN(ROW(アクティビティ))+1),ROWS($B$3:B33)))&\" \"&CHAR(10)&(INDEX(結果,SMALL(IF(ターゲット=$B$2,ROW(結果)-MIN(ROW(結果))+1),ROWS($B$3:B33))))&CHAR(10),\"\")","v":""},null,{"$f":"IFERROR(INDEX(アクティビティ,SMALL(IF(ターゲット=$D$2,ROW(アクティビティ)-MIN(ROW(アクティビティ))+1),ROWS($B$3:B33)))&CHAR(10),\"\")","v":""},null,{"$f":"IFERROR(INDEX(アクティビティ,SMALL(IF(ターゲット=$F$2,ROW(アクティビティ)-MIN(ROW(アクティビティ))+1),ROWS($B$3:B33)))&CHAR(10),\"\")","v":""},null,{"$f":"IFERROR(INDEX(アクティビティ,SMALL(IF(ターゲット=$H$2,ROW(アクティビティ)-MIN(ROW(アクティビティ))+1),ROWS($B$3:B33)))&CHAR(10),\"\")","v":""}]
[null,{"$f":"IFERROR(INDEX(アクティビティ,SMALL(IF(ターゲット=$B$2,ROW(アクティビティ)-MIN(ROW(アクティビティ))+1),ROWS($B$3:B34)))&\" \"&CHAR(10)&(INDEX(結果,SMALL(IF(ターゲット=$B$2,ROW(結果)-MIN(ROW(結果))+1),ROWS($B$3:B34))))&CHAR(10),\"\")","v":""},null,{"$f":"IFERROR(INDEX(アクティビティ,SMALL(IF(ターゲット=$D$2,ROW(アクティビティ)-MIN(ROW(アクティビティ))+1),ROWS($B$3:B34)))&CHAR(10),\"\")","v":""},null,{"$f":"IFERROR(INDEX(アクティビティ,SMALL(IF(ターゲット=$F$2,ROW(アクティビティ)-MIN(ROW(アクティビティ))+1),ROWS($B$3:B34)))&CHAR(10),\"\")","v":""},null,{"$f":"IFERROR(INDEX(アクティビティ,SMALL(IF(ターゲット=$H$2,ROW(アクティビティ)-MIN(ROW(アクティビティ))+1),ROWS($B$3:B34)))&CHAR(10),\"\")","v":""}]
[null,{"$f":"IFERROR(INDEX(アクティビティ,SMALL(IF(ターゲット=$B$2,ROW(アクティビティ)-MIN(ROW(アクティビティ))+1),ROWS($B$3:B35)))&\" \"&CHAR(10)&(INDEX(結果,SMALL(IF(ターゲット=$B$2,ROW(結果)-MIN(ROW(結果))+1),ROWS($B$3:B35))))&CHAR(10),\"\")","v":""},null,{"$f":"IFERROR(INDEX(アクティビティ,SMALL(IF(ターゲット=$D$2,ROW(アクティビティ)-MIN(ROW(アクティビティ))+1),ROWS($B$3:B35)))&CHAR(10),\"\")","v":""},null,{"$f":"IFERROR(INDEX(アクティビティ,SMALL(IF(ターゲット=$F$2,ROW(アクティビティ)-MIN(ROW(アクティビティ))+1),ROWS($B$3:B35)))&CHAR(10),\"\")","v":""},null,{"$f":"IFERROR(INDEX(アクティビティ,SMALL(IF(ターゲット=$H$2,ROW(アクティビティ)-MIN(ROW(アクティビティ))+1),ROWS($B$3:B35)))&CHAR(10),\"\")","v":""}]
[null,{"$f":"IFERROR(INDEX(アクティビティ,SMALL(IF(ターゲット=$B$2,ROW(アクティビティ)-MIN(ROW(アクティビティ))+1),ROWS($B$3:B36)))&\" \"&CHAR(10)&(INDEX(結果,SMALL(IF(ターゲット=$B$2,ROW(結果)-MIN(ROW(結果))+1),ROWS($B$3:B36))))&CHAR(10),\"\")","v":""},null,{"$f":"IFERROR(INDEX(アクティビティ,SMALL(IF(ターゲット=$D$2,ROW(アクティビティ)-MIN(ROW(アクティビティ))+1),ROWS($B$3:B36)))&CHAR(10),\"\")","v":""},null,{"$f":"IFERROR(INDEX(アクティビティ,SMALL(IF(ターゲット=$F$2,ROW(アクティビティ)-MIN(ROW(アクティビティ))+1),ROWS($B$3:B36)))&CHAR(10),\"\")","v":""},null,{"$f":"IFERROR(INDEX(アクティビティ,SMALL(IF(ターゲット=$H$2,ROW(アクティビティ)-MIN(ROW(アクティビティ))+1),ROWS($B$3:B36)))&CHAR(10),\"\")","v":""}]
[null,{"$f":"IFERROR(INDEX(アクティビティ,SMALL(IF(ターゲット=$B$2,ROW(アクティビティ)-MIN(ROW(アクティビティ))+1),ROWS($B$3:B37)))&\" \"&CHAR(10)&(INDEX(結果,SMALL(IF(ターゲット=$B$2,ROW(結果)-MIN(ROW(結果))+1),ROWS($B$3:B37))))&CHAR(10),\"\")","v":""},null,{"$f":"IFERROR(INDEX(アクティビティ,SMALL(IF(ターゲット=$D$2,ROW(アクティビティ)-MIN(ROW(アクティビティ))+1),ROWS($B$3:B37)))&CHAR(10),\"\")","v":""},null,{"$f":"IFERROR(INDEX(アクティビティ,SMALL(IF(ターゲット=$F$2,ROW(アクティビティ)-MIN(ROW(アクティビティ))+1),ROWS($B$3:B37)))&CHAR(10),\"\")","v":""},null,{"$f":"IFERROR(INDEX(アクティビティ,SMALL(IF(ターゲット=$H$2,ROW(アクティビティ)-MIN(ROW(アクティビティ))+1),ROWS($B$3:B37)))&CHAR(10),\"\")","v":""}]
[null,{"$f":"IFERROR(INDEX(アクティビティ,SMALL(IF(ターゲット=$B$2,ROW(アクティビティ)-MIN(ROW(アクティビティ))+1),ROWS($B$3:B38)))&\" \"&CHAR(10)&(INDEX(結果,SMALL(IF(ターゲット=$B$2,ROW(結果)-MIN(ROW(結果))+1),ROWS($B$3:B38))))&CHAR(10),\"\")","v":""},null,{"$f":"IFERROR(INDEX(アクティビティ,SMALL(IF(ターゲット=$D$2,ROW(アクティビティ)-MIN(ROW(アクティビティ))+1),ROWS($B$3:B38)))&CHAR(10),\"\")","v":""},null,{"$f":"IFERROR(INDEX(アクティビティ,SMALL(IF(ターゲット=$F$2,ROW(アクティビティ)-MIN(ROW(アクティビティ))+1),ROWS($B$3:B38)))&CHAR(10),\"\")","v":""},null,{"$f":"IFERROR(INDEX(アクティビティ,SMALL(IF(ターゲット=$H$2,ROW(アクティビティ)-MIN(ROW(アクティビティ))+1),ROWS($B$3:B38)))&CHAR(10),\"\")","v":""}]
[null,{"$f":"IFERROR(INDEX(アクティビティ,SMALL(IF(ターゲット=$B$2,ROW(アクティビティ)-MIN(ROW(アクティビティ))+1),ROWS($B$3:B39)))&\" \"&CHAR(10)&(INDEX(結果,SMALL(IF(ターゲット=$B$2,ROW(結果)-MIN(ROW(結果))+1),ROWS($B$3:B39))))&CHAR(10),\"\")","v":""},null,{"$f":"IFERROR(INDEX(アクティビティ,SMALL(IF(ターゲット=$D$2,ROW(アクティビティ)-MIN(ROW(アクティビティ))+1),ROWS($B$3:B39)))&CHAR(10),\"\")","v":""},null,{"$f":"IFERROR(INDEX(アクティビティ,SMALL(IF(ターゲット=$F$2,ROW(アクティビティ)-MIN(ROW(アクティビティ))+1),ROWS($B$3:B39)))&CHAR(10),\"\")","v":""},null,{"$f":"IFERROR(INDEX(アクティビティ,SMALL(IF(ターゲット=$H$2,ROW(アクティビティ)-MIN(ROW(アクティビティ))+1),ROWS($B$3:B39)))&CHAR(10),\"\")","v":""}]
[null,{"$f":"IFERROR(INDEX(アクティビティ,SMALL(IF(ターゲット=$B$2,ROW(アクティビティ)-MIN(ROW(アクティビティ))+1),ROWS($B$3:B40)))&\" \"&CHAR(10)&(INDEX(結果,SMALL(IF(ターゲット=$B$2,ROW(結果)-MIN(ROW(結果))+1),ROWS($B$3:B40))))&CHAR(10),\"\")","v":""},null,{"$f":"IFERROR(INDEX(アクティビティ,SMALL(IF(ターゲット=$D$2,ROW(アクティビティ)-MIN(ROW(アクティビティ))+1),ROWS($B$3:B40)))&CHAR(10),\"\")","v":""},null,{"$f":"IFERROR(INDEX(アクティビティ,SMALL(IF(ターゲット=$F$2,ROW(アクティビティ)-MIN(ROW(アクティビティ))+1),ROWS($B$3:B40)))&CHAR(10),\"\")","v":""},null,{"$f":"IFERROR(INDEX(アクティビティ,SMALL(IF(ターゲット=$H$2,ROW(アクティビティ)-MIN(ROW(アクティビティ))+1),ROWS($B$3:B40)))&CHAR(10),\"\")","v":""}]
[null,{"$f":"IFERROR(INDEX(アクティビティ,SMALL(IF(ターゲット=$B$2,ROW(アクティビティ)-MIN(ROW(アクティビティ))+1),ROWS($B$3:B41)))&\" \"&CHAR(10)&(INDEX(結果,SMALL(IF(ターゲット=$B$2,ROW(結果)-MIN(ROW(結果))+1),ROWS($B$3:B41))))&CHAR(10),\"\")","v":""},null,{"$f":"IFERROR(INDEX(アクティビティ,SMALL(IF(ターゲット=$D$2,ROW(アクティビティ)-MIN(ROW(アクティビティ))+1),ROWS($B$3:B41)))&CHAR(10),\"\")","v":""},null,{"$f":"IFERROR(INDEX(アクティビティ,SMALL(IF(ターゲット=$F$2,ROW(アクティビティ)-MIN(ROW(アクティビティ))+1),ROWS($B$3:B41)))&CHAR(10),\"\")","v":""},null,{"$f":"IFERROR(INDEX(アクティビティ,SMALL(IF(ターゲット=$H$2,ROW(アクティビティ)-MIN(ROW(アクティビティ))+1),ROWS($B$3:B41)))&CHAR(10),\"\")","v":""}]
[null,{"$f":"IFERROR(INDEX(アクティビティ,SMALL(IF(ターゲット=$B$2,ROW(アクティビティ)-MIN(ROW(アクティビティ))+1),ROWS($B$3:B42)))&\" \"&CHAR(10)&(INDEX(結果,SMALL(IF(ターゲット=$B$2,ROW(結果)-MIN(ROW(結果))+1),ROWS($B$3:B42))))&CHAR(10),\"\")","v":""},null,{"$f":"IFERROR(INDEX(アクティビティ,SMALL(IF(ターゲット=$D$2,ROW(アクティビティ)-MIN(ROW(アクティビティ))+1),ROWS($B$3:B42)))&CHAR(10),\"\")","v":""},null,{"$f":"IFERROR(INDEX(アクティビティ,SMALL(IF(ターゲット=$F$2,ROW(アクティビティ)-MIN(ROW(アクティビティ))+1),ROWS($B$3:B42)))&CHAR(10),\"\")","v":""},null,{"$f":"IFERROR(INDEX(アクティビティ,SMALL(IF(ターゲット=$H$2,ROW(アクティビティ)-MIN(ROW(アクティビティ))+1),ROWS($B$3:B42)))&CHAR(10),\"\")","v":""}]
[null,{"$f":"IFERROR(INDEX(アクティビティ,SMALL(IF(ターゲット=$B$2,ROW(アクティビティ)-MIN(ROW(アクティビティ))+1),ROWS($B$3:B43)))&\" \"&CHAR(10)&(INDEX(結果,SMALL(IF(ターゲット=$B$2,ROW(結果)-MIN(ROW(結果))+1),ROWS($B$3:B43))))&CHAR(10),\"\")","v":""},null,{"$f":"IFERROR(INDEX(アクティビティ,SMALL(IF(ターゲット=$D$2,ROW(アクティビティ)-MIN(ROW(アクティビティ))+1),ROWS($B$3:B43)))&CHAR(10),\"\")","v":""},null,{"$f":"IFERROR(INDEX(アクティビティ,SMALL(IF(ターゲット=$F$2,ROW(アクティビティ)-MIN(ROW(アクティビティ))+1),ROWS($B$3:B43)))&CHAR(10),\"\")","v":""},null,{"$f":"IFERROR(INDEX(アクティビティ,SMALL(IF(ターゲット=$H$2,ROW(アクティビティ)-MIN(ROW(アクティビティ))+1),ROWS($B$3:B43)))&CHAR(10),\"\")","v":""}]
[null,{"$f":"IFERROR(INDEX(アクティビティ,SMALL(IF(ターゲット=$B$2,ROW(アクティビティ)-MIN(ROW(アクティビティ))+1),ROWS($B$3:B44)))&\" \"&CHAR(10)&(INDEX(結果,SMALL(IF(ターゲット=$B$2,ROW(結果)-MIN(ROW(結果))+1),ROWS($B$3:B44))))&CHAR(10),\"\")","v":""},null,{"$f":"IFERROR(INDEX(アクティビティ,SMALL(IF(ターゲット=$D$2,ROW(アクティビティ)-MIN(ROW(アクティビティ))+1),ROWS($B$3:B44)))&CHAR(10),\"\")","v":""},null,{"$f":"IFERROR(INDEX(アクティビティ,SMALL(IF(ターゲット=$F$2,ROW(アクティビティ)-MIN(ROW(アクティビティ))+1),ROWS($B$3:B44)))&CHAR(10),\"\")","v":""},null,{"$f":"IFERROR(INDEX(アクティビティ,SMALL(IF(ターゲット=$H$2,ROW(アクティビティ)-MIN(ROW(アクティビティ))+1),ROWS($B$3:B44)))&CHAR(10),\"\")","v":""}]
[null,{"$f":"IFERROR(INDEX(アクティビティ,SMALL(IF(ターゲット=$B$2,ROW(アクティビティ)-MIN(ROW(アクティビティ))+1),ROWS($B$3:B45)))&\" \"&CHAR(10)&(INDEX(結果,SMALL(IF(ターゲット=$B$2,ROW(結果)-MIN(ROW(結果))+1),ROWS($B$3:B45))))&CHAR(10),\"\")","v":""},null,{"$f":"IFERROR(INDEX(アクティビティ,SMALL(IF(ターゲット=$D$2,ROW(アクティビティ)-MIN(ROW(アクティビティ))+1),ROWS($B$3:B45)))&CHAR(10),\"\")","v":""},null,{"$f":"IFERROR(INDEX(アクティビティ,SMALL(IF(ターゲット=$F$2,ROW(アクティビティ)-MIN(ROW(アクティビティ))+1),ROWS($B$3:B45)))&CHAR(10),\"\")","v":""},null,{"$f":"IFERROR(INDEX(アクティビティ,SMALL(IF(ターゲット=$H$2,ROW(アクティビティ)-MIN(ROW(アクティビティ))+1),ROWS($B$3:B45)))&CHAR(10),\"\")","v":""}]
[null,{"$f":"IFERROR(INDEX(アクティビティ,SMALL(IF(ターゲット=$B$2,ROW(アクティビティ)-MIN(ROW(アクティビティ))+1),ROWS($B$3:B46)))&\" \"&CHAR(10)&(INDEX(結果,SMALL(IF(ターゲット=$B$2,ROW(結果)-MIN(ROW(結果))+1),ROWS($B$3:B46))))&CHAR(10),\"\")","v":""},null,{"$f":"IFERROR(INDEX(アクティビティ,SMALL(IF(ターゲット=$D$2,ROW(アクティビティ)-MIN(ROW(アクティビティ))+1),ROWS($B$3:B46)))&CHAR(10),\"\")","v":""},null,{"$f":"IFERROR(INDEX(アクティビティ,SMALL(IF(ターゲット=$F$2,ROW(アクティビティ)-MIN(ROW(アクティビティ))+1),ROWS($B$3:B46)))&CHAR(10),\"\")","v":""},null,{"$f":"IFERROR(INDEX(アクティビティ,SMALL(IF(ターゲット=$H$2,ROW(アクティビティ)-MIN(ROW(アクティビティ))+1),ROWS($B$3:B46)))&CHAR(10),\"\")","v":""}]
[null,{"$f":"IFERROR(INDEX(アクティビティ,SMALL(IF(ターゲット=$B$2,ROW(アクティビティ)-MIN(ROW(アクティビティ))+1),ROWS($B$3:B47)))&\" \"&CHAR(10)&(INDEX(結果,SMALL(IF(ターゲット=$B$2,ROW(結果)-MIN(ROW(結果))+1),ROWS($B$3:B47))))&CHAR(10),\"\")","v":""},null,{"$f":"IFERROR(INDEX(アクティビティ,SMALL(IF(ターゲット=$D$2,ROW(アクティビティ)-MIN(ROW(アクティビティ))+1),ROWS($B$3:B47)))&CHAR(10),\"\")","v":""},null,{"$f":"IFERROR(INDEX(アクティビティ,SMALL(IF(ターゲット=$F$2,ROW(アクティビティ)-MIN(ROW(アクティビティ))+1),ROWS($B$3:B47)))&CHAR(10),\"\")","v":""},null,{"$f":"IFERROR(INDEX(アクティビティ,SMALL(IF(ターゲット=$H$2,ROW(アクティビティ)-MIN(ROW(アクティビティ))+1),ROWS($B$3:B47)))&CHAR(10),\"\")","v":""}]
[null,{"$f":"IFERROR(INDEX(アクティビティ,SMALL(IF(ターゲット=$B$2,ROW(アクティビティ)-MIN(ROW(アクティビティ))+1),ROWS($B$3:B48)))&\" \"&CHAR(10)&(INDEX(結果,SMALL(IF(ターゲット=$B$2,ROW(結果)-MIN(ROW(結果))+1),ROWS($B$3:B48))))&CHAR(10),\"\")","v":""},null,{"$f":"IFERROR(INDEX(アクティビティ,SMALL(IF(ターゲット=$D$2,ROW(アクティビティ)-MIN(ROW(アクティビティ))+1),ROWS($B$3:B48)))&CHAR(10),\"\")","v":""},null,{"$f":"IFERROR(INDEX(アクティビティ,SMALL(IF(ターゲット=$F$2,ROW(アクティビティ)-MIN(ROW(アクティビティ))+1),ROWS($B$3:B48)))&CHAR(10),\"\")","v":""},null,{"$f":"IFERROR(INDEX(アクティビティ,SMALL(IF(ターゲット=$H$2,ROW(アクティビティ)-MIN(ROW(アクティビティ))+1),ROWS($B$3:B48)))&CHAR(10),\"\")","v":""}]
[null,{"$f":"IFERROR(INDEX(アクティビティ,SMALL(IF(ターゲット=$B$2,ROW(アクティビティ)-MIN(ROW(アクティビティ))+1),ROWS($B$3:B49)))&\" \"&CHAR(10)&(INDEX(結果,SMALL(IF(ターゲット=$B$2,ROW(結果)-MIN(ROW(結果))+1),ROWS($B$3:B49))))&CHAR(10),\"\")","v":""},null,{"$f":"IFERROR(INDEX(アクティビティ,SMALL(IF(ターゲット=$D$2,ROW(アクティビティ)-MIN(ROW(アクティビティ))+1),ROWS($B$3:B49)))&CHAR(10),\"\")","v":""},null,{"$f":"IFERROR(INDEX(アクティビティ,SMALL(IF(ターゲット=$F$2,ROW(アクティビティ)-MIN(ROW(アクティビティ))+1),ROWS($B$3:B49)))&CHAR(10),\"\")","v":""},null,{"$f":"IFERROR(INDEX(アクティビティ,SMALL(IF(ターゲット=$H$2,ROW(アクティビティ)-MIN(ROW(アクティビティ))+1),ROWS($B$3:B49)))&CHAR(10),\"\")","v":""}]
[null,{"$f":"IFERROR(INDEX(アクティビティ,SMALL(IF(ターゲット=$B$2,ROW(アクティビティ)-MIN(ROW(アクティビティ))+1),ROWS($B$3:B50)))&\" \"&CHAR(10)&(INDEX(結果,SMALL(IF(ターゲット=$B$2,ROW(結果)-MIN(ROW(結果))+1),ROWS($B$3:B50))))&CHAR(10),\"\")","v":""},null,{"$f":"IFERROR(INDEX(アクティビティ,SMALL(IF(ターゲット=$D$2,ROW(アクティビティ)-MIN(ROW(アクティビティ))+1),ROWS($B$3:B50)))&CHAR(10),\"\")","v":""},null,{"$f":"IFERROR(INDEX(アクティビティ,SMALL(IF(ターゲット=$F$2,ROW(アクティビティ)-MIN(ROW(アクティビティ))+1),ROWS($B$3:B50)))&CHAR(10),\"\")","v":""},null,{"$f":"IFERROR(INDEX(アクティビティ,SMALL(IF(ターゲット=$H$2,ROW(アクティビティ)-MIN(ROW(アクティビティ))+1),ROWS($B$3:B50)))&CHAR(10),\"\")","v":""}]
[null,{"$f":"IFERROR(INDEX(アクティビティ,SMALL(IF(ターゲット=$B$2,ROW(アクティビティ)-MIN(ROW(アクティビティ))+1),ROWS($B$3:B51)))&\" \"&CHAR(10)&(INDEX(結果,SMALL(IF(ターゲット=$B$2,ROW(結果)-MIN(ROW(結果))+1),ROWS($B$3:B51))))&CHAR(10),\"\")","v":""},null,{"$f":"IFERROR(INDEX(アクティビティ,SMALL(IF(ターゲット=$D$2,ROW(アクティビティ)-MIN(ROW(アクティビティ))+1),ROWS($B$3:B51)))&CHAR(10),\"\")","v":""},null,{"$f":"IFERROR(INDEX(アクティビティ,SMALL(IF(ターゲット=$F$2,ROW(アクティビティ)-MIN(ROW(アクティビティ))+1),ROWS($B$3:B51)))&CHAR(10),\"\")","v":""},null,{"$f":"IFERROR(INDEX(アクティビティ,SMALL(IF(ターゲット=$H$2,ROW(アクティビティ)-MIN(ROW(アクティビティ))+1),ROWS($B$3:B51)))&CHAR(10),\"\")","v":""}]
[null,{"$f":"IFERROR(INDEX(アクティビティ,SMALL(IF(ターゲット=$B$2,ROW(アクティビティ)-MIN(ROW(アクティビティ))+1),ROWS($B$3:B52)))&\" \"&CHAR(10)&(INDEX(結果,SMALL(IF(ターゲット=$B$2,ROW(結果)-MIN(ROW(結果))+1),ROWS($B$3:B52))))&CHAR(10),\"\")","v":""},null,{"$f":"IFERROR(INDEX(アクティビティ,SMALL(IF(ターゲット=$D$2,ROW(アクティビティ)-MIN(ROW(アクティビティ))+1),ROWS($B$3:B52)))&CHAR(10),\"\")","v":""},null,{"$f":"IFERROR(INDEX(アクティビティ,SMALL(IF(ターゲット=$F$2,ROW(アクティビティ)-MIN(ROW(アクティビティ))+1),ROWS($B$3:B52)))&CHAR(10),\"\")","v":""},null,{"$f":"IFERROR(INDEX(アクティビティ,SMALL(IF(ターゲット=$H$2,ROW(アクティビティ)-MIN(ROW(アクティビティ))+1),ROWS($B$3:B52)))&CHAR(10),\"\")","v":""}]
[null,{"$f":"IFERROR(INDEX(アクティビティ,SMALL(IF(ターゲット=$B$2,ROW(アクティビティ)-MIN(ROW(アクティビティ))+1),ROWS($B$3:B53)))&\" \"&CHAR(10)&(INDEX(結果,SMALL(IF(ターゲット=$B$2,ROW(結果)-MIN(ROW(結果))+1),ROWS($B$3:B53))))&CHAR(10),\"\")","v":""},null,{"$f":"IFERROR(INDEX(アクティビティ,SMALL(IF(ターゲット=$D$2,ROW(アクティビティ)-MIN(ROW(アクティビティ))+1),ROWS($B$3:B53)))&CHAR(10),\"\")","v":""},null,{"$f":"IFERROR(INDEX(アクティビティ,SMALL(IF(ターゲット=$F$2,ROW(アクティビティ)-MIN(ROW(アクティビティ))+1),ROWS($B$3:B53)))&CHAR(10),\"\")","v":""},null,{"$f":"IFERROR(INDEX(アクティビティ,SMALL(IF(ターゲット=$H$2,ROW(アクティビティ)-MIN(ROW(アクティビティ))+1),ROWS($B$3:B53)))&CHAR(10),\"\")","v":""}]
[null,{"$f":"IFERROR(INDEX(アクティビティ,SMALL(IF(ターゲット=$B$2,ROW(アクティビティ)-MIN(ROW(アクティビティ))+1),ROWS($B$3:B54)))&\" \"&CHAR(10)&(INDEX(結果,SMALL(IF(ターゲット=$B$2,ROW(結果)-MIN(ROW(結果))+1),ROWS($B$3:B54))))&CHAR(10),\"\")","v":""},null,{"$f":"IFERROR(INDEX(アクティビティ,SMALL(IF(ターゲット=$D$2,ROW(アクティビティ)-MIN(ROW(アクティビティ))+1),ROWS($B$3:B54)))&CHAR(10),\"\")","v":""},null,{"$f":"IFERROR(INDEX(アクティビティ,SMALL(IF(ターゲット=$F$2,ROW(アクティビティ)-MIN(ROW(アクティビティ))+1),ROWS($B$3:B54)))&CHAR(10),\"\")","v":""},null,{"$f":"IFERROR(INDEX(アクティビティ,SMALL(IF(ターゲット=$H$2,ROW(アクティビティ)-MIN(ROW(アクティビティ))+1),ROWS($B$3:B54)))&CHAR(10),\"\")","v":""}]
[null,{"$f":"IFERROR(INDEX(アクティビティ,SMALL(IF(ターゲット=$B$2,ROW(アクティビティ)-MIN(ROW(アクティビティ))+1),ROWS($B$3:B55)))&\" \"&CHAR(10)&(INDEX(結果,SMALL(IF(ターゲット=$B$2,ROW(結果)-MIN(ROW(結果))+1),ROWS($B$3:B55))))&CHAR(10),\"\")","v":""},null,{"$f":"IFERROR(INDEX(アクティビティ,SMALL(IF(ターゲット=$D$2,ROW(アクティビティ)-MIN(ROW(アクティビティ))+1),ROWS($B$3:B55)))&CHAR(10),\"\")","v":""},null,{"$f":"IFERROR(INDEX(アクティビティ,SMALL(IF(ターゲット=$F$2,ROW(アクティビティ)-MIN(ROW(アクティビティ))+1),ROWS($B$3:B55)))&CHAR(10),\"\")","v":""},null,{"$f":"IFERROR(INDEX(アクティビティ,SMALL(IF(ターゲット=$H$2,ROW(アクティビティ)-MIN(ROW(アクティビティ))+1),ROWS($B$3:B55)))&CHAR(10),\"\")","v":""}]
[null,{"$f":"IFERROR(INDEX(アクティビティ,SMALL(IF(ターゲット=$B$2,ROW(アクティビティ)-MIN(ROW(アクティビティ))+1),ROWS($B$3:B56)))&\" \"&CHAR(10)&(INDEX(結果,SMALL(IF(ターゲット=$B$2,ROW(結果)-MIN(ROW(結果))+1),ROWS($B$3:B56))))&CHAR(10),\"\")","v":""},null,{"$f":"IFERROR(INDEX(アクティビティ,SMALL(IF(ターゲット=$D$2,ROW(アクティビティ)-MIN(ROW(アクティビティ))+1),ROWS($B$3:B56)))&CHAR(10),\"\")","v":""},null,{"$f":"IFERROR(INDEX(アクティビティ,SMALL(IF(ターゲット=$F$2,ROW(アクティビティ)-MIN(ROW(アクティビティ))+1),ROWS($B$3:B56)))&CHAR(10),\"\")","v":""},null,{"$f":"IFERROR(INDEX(アクティビティ,SMALL(IF(ターゲット=$H$2,ROW(アクティビティ)-MIN(ROW(アクティビティ))+1),ROWS($B$3:B56)))&CHAR(10),\"\")","v":""}]
[null,{"$f":"IFERROR(INDEX(アクティビティ,SMALL(IF(ターゲット=$B$2,ROW(アクティビティ)-MIN(ROW(アクティビティ))+1),ROWS($B$3:B57)))&\" \"&CHAR(10)&(INDEX(結果,SMALL(IF(ターゲット=$B$2,ROW(結果)-MIN(ROW(結果))+1),ROWS($B$3:B57))))&CHAR(10),\"\")","v":""},null,{"$f":"IFERROR(INDEX(アクティビティ,SMALL(IF(ターゲット=$D$2,ROW(アクティビティ)-MIN(ROW(アクティビティ))+1),ROWS($B$3:B57)))&CHAR(10),\"\")","v":""},null,{"$f":"IFERROR(INDEX(アクティビティ,SMALL(IF(ターゲット=$F$2,ROW(アクティビティ)-MIN(ROW(アクティビティ))+1),ROWS($B$3:B57)))&CHAR(10),\"\")","v":""},null,{"$f":"IFERROR(INDEX(アクティビティ,SMALL(IF(ターゲット=$H$2,ROW(アクティビティ)-MIN(ROW(アクティビティ))+1),ROWS($B$3:B57)))&CHAR(10),\"\")","v":""}]
[null,{"$f":"IFERROR(INDEX(アクティビティ,SMALL(IF(ターゲット=$B$2,ROW(アクティビティ)-MIN(ROW(アクティビティ))+1),ROWS($B$3:B58)))&\" \"&CHAR(10)&(INDEX(結果,SMALL(IF(ターゲット=$B$2,ROW(結果)-MIN(ROW(結果))+1),ROWS($B$3:B58))))&CHAR(10),\"\")","v":""},null,{"$f":"IFERROR(INDEX(アクティビティ,SMALL(IF(ターゲット=$D$2,ROW(アクティビティ)-MIN(ROW(アクティビティ))+1),ROWS($B$3:B58)))&CHAR(10),\"\")","v":""},null,{"$f":"IFERROR(INDEX(アクティビティ,SMALL(IF(ターゲット=$F$2,ROW(アクティビティ)-MIN(ROW(アクティビティ))+1),ROWS($B$3:B58)))&CHAR(10),\"\")","v":""},null,{"$f":"IFERROR(INDEX(アクティビティ,SMALL(IF(ターゲット=$H$2,ROW(アクティビティ)-MIN(ROW(アクティビティ))+1),ROWS($B$3:B58)))&CHAR(10),\"\")","v":""}]
[null,{"$f":"IFERROR(INDEX(アクティビティ,SMALL(IF(ターゲット=$B$2,ROW(アクティビティ)-MIN(ROW(アクティビティ))+1),ROWS($B$3:B59)))&\" \"&CHAR(10)&(INDEX(結果,SMALL(IF(ターゲット=$B$2,ROW(結果)-MIN(ROW(結果))+1),ROWS($B$3:B59))))&CHAR(10),\"\")","v":""},null,{"$f":"IFERROR(INDEX(アクティビティ,SMALL(IF(ターゲット=$D$2,ROW(アクティビティ)-MIN(ROW(アクティビティ))+1),ROWS($B$3:B59)))&CHAR(10),\"\")","v":""},null,{"$f":"IFERROR(INDEX(アクティビティ,SMALL(IF(ターゲット=$F$2,ROW(アクティビティ)-MIN(ROW(アクティビティ))+1),ROWS($B$3:B59)))&CHAR(10),\"\")","v":""},null,{"$f":"IFERROR(INDEX(アクティビティ,SMALL(IF(ターゲット=$H$2,ROW(アクティビティ)-MIN(ROW(アクティビティ))+1),ROWS($B$3:B59)))&CHAR(10),\"\")","v":""}]
[null,{"$f":"IFERROR(INDEX(アクティビティ,SMALL(IF(ターゲット=$B$2,ROW(アクティビティ)-MIN(ROW(アクティビティ))+1),ROWS($B$3:B60)))&\" \"&CHAR(10)&(INDEX(結果,SMALL(IF(ターゲット=$B$2,ROW(結果)-MIN(ROW(結果))+1),ROWS($B$3:B60))))&CHAR(10),\"\")","v":""},null,{"$f":"IFERROR(INDEX(アクティビティ,SMALL(IF(ターゲット=$D$2,ROW(アクティビティ)-MIN(ROW(アクティビティ))+1),ROWS($B$3:B60)))&CHAR(10),\"\")","v":""},null,{"$f":"IFERROR(INDEX(アクティビティ,SMALL(IF(ターゲット=$F$2,ROW(アクティビティ)-MIN(ROW(アクティビティ))+1),ROWS($B$3:B60)))&CHAR(10),\"\")","v":""},null,{"$f":"IFERROR(INDEX(アクティビティ,SMALL(IF(ターゲット=$H$2,ROW(アクティビティ)-MIN(ROW(アクティビティ))+1),ROWS($B$3:B60)))&CHAR(10),\"\")","v":""}]
[null,{"$f":"IFERROR(INDEX(アクティビティ,SMALL(IF(ターゲット=$B$2,ROW(アクティビティ)-MIN(ROW(アクティビティ))+1),ROWS($B$3:B61)))&\" \"&CHAR(10)&(INDEX(結果,SMALL(IF(ターゲット=$B$2,ROW(結果)-MIN(ROW(結果))+1),ROWS($B$3:B61))))&CHAR(10),\"\")","v":""},null,{"$f":"IFERROR(INDEX(アクティビティ,SMALL(IF(ターゲット=$D$2,ROW(アクティビティ)-MIN(ROW(アクティビティ))+1),ROWS($B$3:B61)))&CHAR(10),\"\")","v":""},null,{"$f":"IFERROR(INDEX(アクティビティ,SMALL(IF(ターゲット=$F$2,ROW(アクティビティ)-MIN(ROW(アクティビティ))+1),ROWS($B$3:B61)))&CHAR(10),\"\")","v":""},null,{"$f":"IFERROR(INDEX(アクティビティ,SMALL(IF(ターゲット=$H$2,ROW(アクティビティ)-MIN(ROW(アクティビティ))+1),ROWS($B$3:B61)))&CHAR(10),\"\")","v":""}]
[null,{"$f":"IFERROR(INDEX(アクティビティ,SMALL(IF(ターゲット=$B$2,ROW(アクティビティ)-MIN(ROW(アクティビティ))+1),ROWS($B$3:B62)))&\" \"&CHAR(10)&(INDEX(結果,SMALL(IF(ターゲット=$B$2,ROW(結果)-MIN(ROW(結果))+1),ROWS($B$3:B62))))&CHAR(10),\"\")","v":""},null,{"$f":"IFERROR(INDEX(アクティビティ,SMALL(IF(ターゲット=$D$2,ROW(アクティビティ)-MIN(ROW(アクティビティ))+1),ROWS($B$3:B62)))&CHAR(10),\"\")","v":""},null,{"$f":"IFERROR(INDEX(アクティビティ,SMALL(IF(ターゲット=$F$2,ROW(アクティビティ)-MIN(ROW(アクティビティ))+1),ROWS($B$3:B62)))&CHAR(10),\"\")","v":""},null,{"$f":"IFERROR(INDEX(アクティビティ,SMALL(IF(ターゲット=$H$2,ROW(アクティビティ)-MIN(ROW(アクティビティ))+1),ROWS($B$3:B62)))&CHAR(10),\"\")","v":""}]
[null,{"$f":"IFERROR(INDEX(アクティビティ,SMALL(IF(ターゲット=$B$2,ROW(アクティビティ)-MIN(ROW(アクティビティ))+1),ROWS($B$3:B63)))&\" \"&CHAR(10)&(INDEX(結果,SMALL(IF(ターゲット=$B$2,ROW(結果)-MIN(ROW(結果))+1),ROWS($B$3:B63))))&CHAR(10),\"\")","v":""},null,{"$f":"IFERROR(INDEX(アクティビティ,SMALL(IF(ターゲット=$D$2,ROW(アクティビティ)-MIN(ROW(アクティビティ))+1),ROWS($B$3:B63)))&CHAR(10),\"\")","v":""},null,{"$f":"IFERROR(INDEX(アクティビティ,SMALL(IF(ターゲット=$F$2,ROW(アクティビティ)-MIN(ROW(アクティビティ))+1),ROWS($B$3:B63)))&CHAR(10),\"\")","v":""},null,{"$f":"IFERROR(INDEX(アクティビティ,SMALL(IF(ターゲット=$H$2,ROW(アクティビティ)-MIN(ROW(アクティビティ))+1),ROWS($B$3:B63)))&CHAR(10),\"\")","v":""}]
[null,{"$f":"IFERROR(INDEX(アクティビティ,SMALL(IF(ターゲット=$B$2,ROW(アクティビティ)-MIN(ROW(アクティビティ))+1),ROWS($B$3:B64)))&\" \"&CHAR(10)&(INDEX(結果,SMALL(IF(ターゲット=$B$2,ROW(結果)-MIN(ROW(結果))+1),ROWS($B$3:B64))))&CHAR(10),\"\")","v":""},null,{"$f":"IFERROR(INDEX(アクティビティ,SMALL(IF(ターゲット=$D$2,ROW(アクティビティ)-MIN(ROW(アクティビティ))+1),ROWS($B$3:B64)))&CHAR(10),\"\")","v":""},null,{"$f":"IFERROR(INDEX(アクティビティ,SMALL(IF(ターゲット=$F$2,ROW(アクティビティ)-MIN(ROW(アクティビティ))+1),ROWS($B$3:B64)))&CHAR(10),\"\")","v":""},null,{"$f":"IFERROR(INDEX(アクティビティ,SMALL(IF(ターゲット=$H$2,ROW(アクティビティ)-MIN(ROW(アクティビティ))+1),ROWS($B$3:B64)))&CHAR(10),\"\")","v":""}]
[null,{"$f":"IFERROR(INDEX(アクティビティ,SMALL(IF(ターゲット=$B$2,ROW(アクティビティ)-MIN(ROW(アクティビティ))+1),ROWS($B$3:B65)))&\" \"&CHAR(10)&(INDEX(結果,SMALL(IF(ターゲット=$B$2,ROW(結果)-MIN(ROW(結果))+1),ROWS($B$3:B65))))&CHAR(10),\"\")","v":""},null,{"$f":"IFERROR(INDEX(アクティビティ,SMALL(IF(ターゲット=$D$2,ROW(アクティビティ)-MIN(ROW(アクティビティ))+1),ROWS($B$3:B65)))&CHAR(10),\"\")","v":""},null,{"$f":"IFERROR(INDEX(アクティビティ,SMALL(IF(ターゲット=$F$2,ROW(アクティビティ)-MIN(ROW(アクティビティ))+1),ROWS($B$3:B65)))&CHAR(10),\"\")","v":""},null,{"$f":"IFERROR(INDEX(アクティビティ,SMALL(IF(ターゲット=$H$2,ROW(アクティビティ)-MIN(ROW(アクティビティ))+1),ROWS($B$3:B65)))&CHAR(10),\"\")","v":""}]
[null,{"$f":"IFERROR(INDEX(アクティビティ,SMALL(IF(ターゲット=$B$2,ROW(アクティビティ)-MIN(ROW(アクティビティ))+1),ROWS($B$3:B66)))&\" \"&CHAR(10)&(INDEX(結果,SMALL(IF(ターゲット=$B$2,ROW(結果)-MIN(ROW(結果))+1),ROWS($B$3:B66))))&CHAR(10),\"\")","v":""},null,{"$f":"IFERROR(INDEX(アクティビティ,SMALL(IF(ターゲット=$D$2,ROW(アクティビティ)-MIN(ROW(アクティビティ))+1),ROWS($B$3:B66)))&CHAR(10),\"\")","v":""},null,{"$f":"IFERROR(INDEX(アクティビティ,SMALL(IF(ターゲット=$F$2,ROW(アクティビティ)-MIN(ROW(アクティビティ))+1),ROWS($B$3:B66)))&CHAR(10),\"\")","v":""},null,{"$f":"IFERROR(INDEX(アクティビティ,SMALL(IF(ターゲット=$H$2,ROW(アクティビティ)-MIN(ROW(アクティビティ))+1),ROWS($B$3:B66)))&CHAR(10),\"\")","v":""}]
[null,{"$f":"IFERROR(INDEX(アクティビティ,SMALL(IF(ターゲット=$B$2,ROW(アクティビティ)-MIN(ROW(アクティビティ))+1),ROWS($B$3:B67)))&\" \"&CHAR(10)&(INDEX(結果,SMALL(IF(ターゲット=$B$2,ROW(結果)-MIN(ROW(結果))+1),ROWS($B$3:B67))))&CHAR(10),\"\")","v":""},null,{"$f":"IFERROR(INDEX(アクティビティ,SMALL(IF(ターゲット=$D$2,ROW(アクティビティ)-MIN(ROW(アクティビティ))+1),ROWS($B$3:B67)))&CHAR(10),\"\")","v":""},null,{"$f":"IFERROR(INDEX(アクティビティ,SMALL(IF(ターゲット=$F$2,ROW(アクティビティ)-MIN(ROW(アクティビティ))+1),ROWS($B$3:B67)))&CHAR(10),\"\")","v":""},null,{"$f":"IFERROR(INDEX(アクティビティ,SMALL(IF(ターゲット=$H$2,ROW(アクティビティ)-MIN(ROW(アクティビティ))+1),ROWS($B$3:B67)))&CHAR(10),\"\")","v":""}]
[null,{"$f":"IFERROR(INDEX(アクティビティ,SMALL(IF(ターゲット=$B$2,ROW(アクティビティ)-MIN(ROW(アクティビティ))+1),ROWS($B$3:B68)))&\" \"&CHAR(10)&(INDEX(結果,SMALL(IF(ターゲット=$B$2,ROW(結果)-MIN(ROW(結果))+1),ROWS($B$3:B68))))&CHAR(10),\"\")","v":""},null,{"$f":"IFERROR(INDEX(アクティビティ,SMALL(IF(ターゲット=$D$2,ROW(アクティビティ)-MIN(ROW(アクティビティ))+1),ROWS($B$3:B68)))&CHAR(10),\"\")","v":""},null,{"$f":"IFERROR(INDEX(アクティビティ,SMALL(IF(ターゲット=$F$2,ROW(アクティビティ)-MIN(ROW(アクティビティ))+1),ROWS($B$3:B68)))&CHAR(10),\"\")","v":""},null,{"$f":"IFERROR(INDEX(アクティビティ,SMALL(IF(ターゲット=$H$2,ROW(アクティビティ)-MIN(ROW(アクティビティ))+1),ROWS($B$3:B68)))&CHAR(10),\"\")","v":""}]
[null,{"$f":"IFERROR(INDEX(アクティビティ,SMALL(IF(ターゲット=$B$2,ROW(アクティビティ)-MIN(ROW(アクティビティ))+1),ROWS($B$3:B69)))&\" \"&CHAR(10)&(INDEX(結果,SMALL(IF(ターゲット=$B$2,ROW(結果)-MIN(ROW(結果))+1),ROWS($B$3:B69))))&CHAR(10),\"\")","v":""},null,{"$f":"IFERROR(INDEX(アクティビティ,SMALL(IF(ターゲット=$D$2,ROW(アクティビティ)-MIN(ROW(アクティビティ))+1),ROWS($B$3:B69)))&CHAR(10),\"\")","v":""},null,{"$f":"IFERROR(INDEX(アクティビティ,SMALL(IF(ターゲット=$F$2,ROW(アクティビティ)-MIN(ROW(アクティビティ))+1),ROWS($B$3:B69)))&CHAR(10),\"\")","v":""},null,{"$f":"IFERROR(INDEX(アクティビティ,SMALL(IF(ターゲット=$H$2,ROW(アクティビティ)-MIN(ROW(アクティビティ))+1),ROWS($B$3:B69)))&CHAR(10),\"\")","v":""}]
[null,{"$f":"IFERROR(INDEX(アクティビティ,SMALL(IF(ターゲット=$B$2,ROW(アクティビティ)-MIN(ROW(アクティビティ))+1),ROWS($B$3:B70)))&\" \"&CHAR(10)&(INDEX(結果,SMALL(IF(ターゲット=$B$2,ROW(結果)-MIN(ROW(結果))+1),ROWS($B$3:B70))))&CHAR(10),\"\")","v":""},null,{"$f":"IFERROR(INDEX(アクティビティ,SMALL(IF(ターゲット=$D$2,ROW(アクティビティ)-MIN(ROW(アクティビティ))+1),ROWS($B$3:B70)))&CHAR(10),\"\")","v":""},null,{"$f":"IFERROR(INDEX(アクティビティ,SMALL(IF(ターゲット=$F$2,ROW(アクティビティ)-MIN(ROW(アクティビティ))+1),ROWS($B$3:B70)))&CHAR(10),\"\")","v":""},null,{"$f":"IFERROR(INDEX(アクティビティ,SMALL(IF(ターゲット=$H$2,ROW(アクティビティ)-MIN(ROW(アクティビティ))+1),ROWS($B$3:B70)))&CHAR(10),\"\")","v":""}]
[null,{"$f":"IFERROR(INDEX(アクティビティ,SMALL(IF(ターゲット=$B$2,ROW(アクティビティ)-MIN(ROW(アクティビティ))+1),ROWS($B$3:B71)))&\" \"&CHAR(10)&(INDEX(結果,SMALL(IF(ターゲット=$B$2,ROW(結果)-MIN(ROW(結果))+1),ROWS($B$3:B71))))&CHAR(10),\"\")","v":""},null,{"$f":"IFERROR(INDEX(アクティビティ,SMALL(IF(ターゲット=$D$2,ROW(アクティビティ)-MIN(ROW(アクティビティ))+1),ROWS($B$3:B71)))&CHAR(10),\"\")","v":""},null,{"$f":"IFERROR(INDEX(アクティビティ,SMALL(IF(ターゲット=$F$2,ROW(アクティビティ)-MIN(ROW(アクティビティ))+1),ROWS($B$3:B71)))&CHAR(10),\"\")","v":""},null,{"$f":"IFERROR(INDEX(アクティビティ,SMALL(IF(ターゲット=$H$2,ROW(アクティビティ)-MIN(ROW(アクティビティ))+1),ROWS($B$3:B71)))&CHAR(10),\"\")","v":""}]
[null,{"$f":"IFERROR(INDEX(アクティビティ,SMALL(IF(ターゲット=$B$2,ROW(アクティビティ)-MIN(ROW(アクティビティ))+1),ROWS($B$3:B72)))&\" \"&CHAR(10)&(INDEX(結果,SMALL(IF(ターゲット=$B$2,ROW(結果)-MIN(ROW(結果))+1),ROWS($B$3:B72))))&CHAR(10),\"\")","v":""},null,{"$f":"IFERROR(INDEX(アクティビティ,SMALL(IF(ターゲット=$D$2,ROW(アクティビティ)-MIN(ROW(アクティビティ))+1),ROWS($B$3:B72)))&CHAR(10),\"\")","v":""},null,{"$f":"IFERROR(INDEX(アクティビティ,SMALL(IF(ターゲット=$F$2,ROW(アクティビティ)-MIN(ROW(アクティビティ))+1),ROWS($B$3:B72)))&CHAR(10),\"\")","v":""},null,{"$f":"IFERROR(INDEX(アクティビティ,SMALL(IF(ターゲット=$H$2,ROW(アクティビティ)-MIN(ROW(アクティビティ))+1),ROWS($B$3:B72)))&CHAR(10),\"\")","v":""}]
[null,{"$f":"IFERROR(INDEX(アクティビティ,SMALL(IF(ターゲット=$B$2,ROW(アクティビティ)-MIN(ROW(アクティビティ))+1),ROWS($B$3:B73)))&\" \"&CHAR(10)&(INDEX(結果,SMALL(IF(ターゲット=$B$2,ROW(結果)-MIN(ROW(結果))+1),ROWS($B$3:B73))))&CHAR(10),\"\")","v":""},null,{"$f":"IFERROR(INDEX(アクティビティ,SMALL(IF(ターゲット=$D$2,ROW(アクティビティ)-MIN(ROW(アクティビティ))+1),ROWS($B$3:B73)))&CHAR(10),\"\")","v":""},null,{"$f":"IFERROR(INDEX(アクティビティ,SMALL(IF(ターゲット=$F$2,ROW(アクティビティ)-MIN(ROW(アクティビティ))+1),ROWS($B$3:B73)))&CHAR(10),\"\")","v":""},null,{"$f":"IFERROR(INDEX(アクティビティ,SMALL(IF(ターゲット=$H$2,ROW(アクティビティ)-MIN(ROW(アクティビティ))+1),ROWS($B$3:B73)))&CHAR(10),\"\")","v":""}]
[null,{"$f":"IFERROR(INDEX(アクティビティ,SMALL(IF(ターゲット=$B$2,ROW(アクティビティ)-MIN(ROW(アクティビティ))+1),ROWS($B$3:B74)))&\" \"&CHAR(10)&(INDEX(結果,SMALL(IF(ターゲット=$B$2,ROW(結果)-MIN(ROW(結果))+1),ROWS($B$3:B74))))&CHAR(10),\"\")","v":""},null,{"$f":"IFERROR(INDEX(アクティビティ,SMALL(IF(ターゲット=$D$2,ROW(アクティビティ)-MIN(ROW(アクティビティ))+1),ROWS($B$3:B74)))&CHAR(10),\"\")","v":""},null,{"$f":"IFERROR(INDEX(アクティビティ,SMALL(IF(ターゲット=$F$2,ROW(アクティビティ)-MIN(ROW(アクティビティ))+1),ROWS($B$3:B74)))&CHAR(10),\"\")","v":""},null,{"$f":"IFERROR(INDEX(アクティビティ,SMALL(IF(ターゲット=$H$2,ROW(アクティビティ)-MIN(ROW(アクティビティ))+1),ROWS($B$3:B74)))&CHAR(10),\"\")","v":""}]
[null,{"$f":"IFERROR(INDEX(アクティビティ,SMALL(IF(ターゲット=$B$2,ROW(アクティビティ)-MIN(ROW(アクティビティ))+1),ROWS($B$3:B75)))&\" \"&CHAR(10)&(INDEX(結果,SMALL(IF(ターゲット=$B$2,ROW(結果)-MIN(ROW(結果))+1),ROWS($B$3:B75))))&CHAR(10),\"\")","v":""},null,{"$f":"IFERROR(INDEX(アクティビティ,SMALL(IF(ターゲット=$D$2,ROW(アクティビティ)-MIN(ROW(アクティビティ))+1),ROWS($B$3:B75)))&CHAR(10),\"\")","v":""},null,{"$f":"IFERROR(INDEX(アクティビティ,SMALL(IF(ターゲット=$F$2,ROW(アクティビティ)-MIN(ROW(アクティビティ))+1),ROWS($B$3:B75)))&CHAR(10),\"\")","v":""},null,{"$f":"IFERROR(INDEX(アクティビティ,SMALL(IF(ターゲット=$H$2,ROW(アクティビティ)-MIN(ROW(アクティビティ))+1),ROWS($B$3:B75)))&CHAR(10),\"\")","v":""}]
[null,{"$f":"IFERROR(INDEX(アクティビティ,SMALL(IF(ターゲット=$B$2,ROW(アクティビティ)-MIN(ROW(アクティビティ))+1),ROWS($B$3:B76)))&\" \"&CHAR(10)&(INDEX(結果,SMALL(IF(ターゲット=$B$2,ROW(結果)-MIN(ROW(結果))+1),ROWS($B$3:B76))))&CHAR(10),\"\")","v":""},null,{"$f":"IFERROR(INDEX(アクティビティ,SMALL(IF(ターゲット=$D$2,ROW(アクティビティ)-MIN(ROW(アクティビティ))+1),ROWS($B$3:B76)))&CHAR(10),\"\")","v":""},null,{"$f":"IFERROR(INDEX(アクティビティ,SMALL(IF(ターゲット=$F$2,ROW(アクティビティ)-MIN(ROW(アクティビティ))+1),ROWS($B$3:B76)))&CHAR(10),\"\")","v":""},null,{"$f":"IFERROR(INDEX(アクティビティ,SMALL(IF(ターゲット=$H$2,ROW(アクティビティ)-MIN(ROW(アクティビティ))+1),ROWS($B$3:B76)))&CHAR(10),\"\")","v":""}]
[null,{"$f":"IFERROR(INDEX(アクティビティ,SMALL(IF(ターゲット=$B$2,ROW(アクティビティ)-MIN(ROW(アクティビティ))+1),ROWS($B$3:B77)))&\" \"&CHAR(10)&(INDEX(結果,SMALL(IF(ターゲット=$B$2,ROW(結果)-MIN(ROW(結果))+1),ROWS($B$3:B77))))&CHAR(10),\"\")","v":""},null,{"$f":"IFERROR(INDEX(アクティビティ,SMALL(IF(ターゲット=$D$2,ROW(アクティビティ)-MIN(ROW(アクティビティ))+1),ROWS($B$3:B77)))&CHAR(10),\"\")","v":""},null,{"$f":"IFERROR(INDEX(アクティビティ,SMALL(IF(ターゲット=$F$2,ROW(アクティビティ)-MIN(ROW(アクティビティ))+1),ROWS($B$3:B77)))&CHAR(10),\"\")","v":""},null,{"$f":"IFERROR(INDEX(アクティビティ,SMALL(IF(ターゲット=$H$2,ROW(アクティビティ)-MIN(ROW(アクティビティ))+1),ROWS($B$3:B77)))&CHAR(10),\"\")","v":""}]
[null,{"$f":"IFERROR(INDEX(アクティビティ,SMALL(IF(ターゲット=$B$2,ROW(アクティビティ)-MIN(ROW(アクティビティ))+1),ROWS($B$3:B78)))&\" \"&CHAR(10)&(INDEX(結果,SMALL(IF(ターゲット=$B$2,ROW(結果)-MIN(ROW(結果))+1),ROWS($B$3:B78))))&CHAR(10),\"\")","v":""},null,{"$f":"IFERROR(INDEX(アクティビティ,SMALL(IF(ターゲット=$D$2,ROW(アクティビティ)-MIN(ROW(アクティビティ))+1),ROWS($B$3:B78)))&CHAR(10),\"\")","v":""},null,{"$f":"IFERROR(INDEX(アクティビティ,SMALL(IF(ターゲット=$F$2,ROW(アクティビティ)-MIN(ROW(アクティビティ))+1),ROWS($B$3:B78)))&CHAR(10),\"\")","v":""},null,{"$f":"IFERROR(INDEX(アクティビティ,SMALL(IF(ターゲット=$H$2,ROW(アクティビティ)-MIN(ROW(アクティビティ))+1),ROWS($B$3:B78)))&CHAR(10),\"\")","v":""}]
[null,{"$f":"IFERROR(INDEX(アクティビティ,SMALL(IF(ターゲット=$B$2,ROW(アクティビティ)-MIN(ROW(アクティビティ))+1),ROWS($B$3:B79)))&\" \"&CHAR(10)&(INDEX(結果,SMALL(IF(ターゲット=$B$2,ROW(結果)-MIN(ROW(結果))+1),ROWS($B$3:B79))))&CHAR(10),\"\")","v":""},null,{"$f":"IFERROR(INDEX(アクティビティ,SMALL(IF(ターゲット=$D$2,ROW(アクティビティ)-MIN(ROW(アクティビティ))+1),ROWS($B$3:B79)))&CHAR(10),\"\")","v":""},null,{"$f":"IFERROR(INDEX(アクティビティ,SMALL(IF(ターゲット=$F$2,ROW(アクティビティ)-MIN(ROW(アクティビティ))+1),ROWS($B$3:B79)))&CHAR(10),\"\")","v":""},null,{"$f":"IFERROR(INDEX(アクティビティ,SMALL(IF(ターゲット=$H$2,ROW(アクティビティ)-MIN(ROW(アクティビティ))+1),ROWS($B$3:B79)))&CHAR(10),\"\")","v":""}]
[null,{"$f":"IFERROR(INDEX(アクティビティ,SMALL(IF(ターゲット=$B$2,ROW(アクティビティ)-MIN(ROW(アクティビティ))+1),ROWS($B$3:B80)))&\" \"&CHAR(10)&(INDEX(結果,SMALL(IF(ターゲット=$B$2,ROW(結果)-MIN(ROW(結果))+1),ROWS($B$3:B80))))&CHAR(10),\"\")","v":""},null,{"$f":"IFERROR(INDEX(アクティビティ,SMALL(IF(ターゲット=$D$2,ROW(アクティビティ)-MIN(ROW(アクティビティ))+1),ROWS($B$3:B80)))&CHAR(10),\"\")","v":""},null,{"$f":"IFERROR(INDEX(アクティビティ,SMALL(IF(ターゲット=$F$2,ROW(アクティビティ)-MIN(ROW(アクティビティ))+1),ROWS($B$3:B80)))&CHAR(10),\"\")","v":""},null,{"$f":"IFERROR(INDEX(アクティビティ,SMALL(IF(ターゲット=$H$2,ROW(アクティビティ)-MIN(ROW(アクティビティ))+1),ROWS($B$3:B80)))&CHAR(10),\"\")","v":""}]
[null,{"$f":"IFERROR(INDEX(アクティビティ,SMALL(IF(ターゲット=$B$2,ROW(アクティビティ)-MIN(ROW(アクティビティ))+1),ROWS($B$3:B81)))&\" \"&CHAR(10)&(INDEX(結果,SMALL(IF(ターゲット=$B$2,ROW(結果)-MIN(ROW(結果))+1),ROWS($B$3:B81))))&CHAR(10),\"\")","v":""},null,{"$f":"IFERROR(INDEX(アクティビティ,SMALL(IF(ターゲット=$D$2,ROW(アクティビティ)-MIN(ROW(アクティビティ))+1),ROWS($B$3:B81)))&CHAR(10),\"\")","v":""},null,{"$f":"IFERROR(INDEX(アクティビティ,SMALL(IF(ターゲット=$F$2,ROW(アクティビティ)-MIN(ROW(アクティビティ))+1),ROWS($B$3:B81)))&CHAR(10),\"\")","v":""},null,{"$f":"IFERROR(INDEX(アクティビティ,SMALL(IF(ターゲット=$H$2,ROW(アクティビティ)-MIN(ROW(アクティビティ))+1),ROWS($B$3:B81)))&CHAR(10),\"\")","v":""}]
[null,{"$f":"IFERROR(INDEX(アクティビティ,SMALL(IF(ターゲット=$B$2,ROW(アクティビティ)-MIN(ROW(アクティビティ))+1),ROWS($B$3:B82)))&\" \"&CHAR(10)&(INDEX(結果,SMALL(IF(ターゲット=$B$2,ROW(結果)-MIN(ROW(結果))+1),ROWS($B$3:B82))))&CHAR(10),\"\")","v":""},null,{"$f":"IFERROR(INDEX(アクティビティ,SMALL(IF(ターゲット=$D$2,ROW(アクティビティ)-MIN(ROW(アクティビティ))+1),ROWS($B$3:B82)))&CHAR(10),\"\")","v":""},null,{"$f":"IFERROR(INDEX(アクティビティ,SMALL(IF(ターゲット=$F$2,ROW(アクティビティ)-MIN(ROW(アクティビティ))+1),ROWS($B$3:B82)))&CHAR(10),\"\")","v":""},null,{"$f":"IFERROR(INDEX(アクティビティ,SMALL(IF(ターゲット=$H$2,ROW(アクティビティ)-MIN(ROW(アクティビティ))+1),ROWS($B$3:B82)))&CHAR(10),\"\")","v":""}]
[null,{"$f":"IFERROR(INDEX(アクティビティ,SMALL(IF(ターゲット=$B$2,ROW(アクティビティ)-MIN(ROW(アクティビティ))+1),ROWS($B$3:B83)))&\" \"&CHAR(10)&(INDEX(結果,SMALL(IF(ターゲット=$B$2,ROW(結果)-MIN(ROW(結果))+1),ROWS($B$3:B83))))&CHAR(10),\"\")","v":""},null,{"$f":"IFERROR(INDEX(アクティビティ,SMALL(IF(ターゲット=$D$2,ROW(アクティビティ)-MIN(ROW(アクティビティ))+1),ROWS($B$3:B83)))&CHAR(10),\"\")","v":""},null,{"$f":"IFERROR(INDEX(アクティビティ,SMALL(IF(ターゲット=$F$2,ROW(アクティビティ)-MIN(ROW(アクティビティ))+1),ROWS($B$3:B83)))&CHAR(10),\"\")","v":""},null,{"$f":"IFERROR(INDEX(アクティビティ,SMALL(IF(ターゲット=$H$2,ROW(アクティビティ)-MIN(ROW(アクティビティ))+1),ROWS($B$3:B83)))&CHAR(10),\"\")","v":""}]
[null,{"$f":"IFERROR(INDEX(アクティビティ,SMALL(IF(ターゲット=$B$2,ROW(アクティビティ)-MIN(ROW(アクティビティ))+1),ROWS($B$3:B84)))&\" \"&CHAR(10)&(INDEX(結果,SMALL(IF(ターゲット=$B$2,ROW(結果)-MIN(ROW(結果))+1),ROWS($B$3:B84))))&CHAR(10),\"\")","v":""},null,{"$f":"IFERROR(INDEX(アクティビティ,SMALL(IF(ターゲット=$D$2,ROW(アクティビティ)-MIN(ROW(アクティビティ))+1),ROWS($B$3:B84)))&CHAR(10),\"\")","v":""},null,{"$f":"IFERROR(INDEX(アクティビティ,SMALL(IF(ターゲット=$F$2,ROW(アクティビティ)-MIN(ROW(アクティビティ))+1),ROWS($B$3:B84)))&CHAR(10),\"\")","v":""},null,{"$f":"IFERROR(INDEX(アクティビティ,SMALL(IF(ターゲット=$H$2,ROW(アクティビティ)-MIN(ROW(アクティビティ))+1),ROWS($B$3:B84)))&CHAR(10),\"\")","v":""}]
[null,{"$f":"IFERROR(INDEX(アクティビティ,SMALL(IF(ターゲット=$B$2,ROW(アクティビティ)-MIN(ROW(アクティビティ))+1),ROWS($B$3:B85)))&\" \"&CHAR(10)&(INDEX(結果,SMALL(IF(ターゲット=$B$2,ROW(結果)-MIN(ROW(結果))+1),ROWS($B$3:B85))))&CHAR(10),\"\")","v":""},null,{"$f":"IFERROR(INDEX(アクティビティ,SMALL(IF(ターゲット=$D$2,ROW(アクティビティ)-MIN(ROW(アクティビティ))+1),ROWS($B$3:B85)))&CHAR(10),\"\")","v":""},null,{"$f":"IFERROR(INDEX(アクティビティ,SMALL(IF(ターゲット=$F$2,ROW(アクティビティ)-MIN(ROW(アクティビティ))+1),ROWS($B$3:B85)))&CHAR(10),\"\")","v":""},null,{"$f":"IFERROR(INDEX(アクティビティ,SMALL(IF(ターゲット=$H$2,ROW(アクティビティ)-MIN(ROW(アクティビティ))+1),ROWS($B$3:B85)))&CHAR(10),\"\")","v":""}]
[null,{"$f":"IFERROR(INDEX(アクティビティ,SMALL(IF(ターゲット=$B$2,ROW(アクティビティ)-MIN(ROW(アクティビティ))+1),ROWS($B$3:B86)))&\" \"&CHAR(10)&(INDEX(結果,SMALL(IF(ターゲット=$B$2,ROW(結果)-MIN(ROW(結果))+1),ROWS($B$3:B86))))&CHAR(10),\"\")","v":""},null,{"$f":"IFERROR(INDEX(アクティビティ,SMALL(IF(ターゲット=$D$2,ROW(アクティビティ)-MIN(ROW(アクティビティ))+1),ROWS($B$3:B86)))&CHAR(10),\"\")","v":""},null,{"$f":"IFERROR(INDEX(アクティビティ,SMALL(IF(ターゲット=$F$2,ROW(アクティビティ)-MIN(ROW(アクティビティ))+1),ROWS($B$3:B86)))&CHAR(10),\"\")","v":""},null,{"$f":"IFERROR(INDEX(アクティビティ,SMALL(IF(ターゲット=$H$2,ROW(アクティビティ)-MIN(ROW(アクティビティ))+1),ROWS($B$3:B86)))&CHAR(10),\"\")","v":""}]
[null,{"$f":"IFERROR(INDEX(アクティビティ,SMALL(IF(ターゲット=$B$2,ROW(アクティビティ)-MIN(ROW(アクティビティ))+1),ROWS($B$3:B87)))&\" \"&CHAR(10)&(INDEX(結果,SMALL(IF(ターゲット=$B$2,ROW(結果)-MIN(ROW(結果))+1),ROWS($B$3:B87))))&CHAR(10),\"\")","v":""},null,{"$f":"IFERROR(INDEX(アクティビティ,SMALL(IF(ターゲット=$D$2,ROW(アクティビティ)-MIN(ROW(アクティビティ))+1),ROWS($B$3:B87)))&CHAR(10),\"\")","v":""},null,{"$f":"IFERROR(INDEX(アクティビティ,SMALL(IF(ターゲット=$F$2,ROW(アクティビティ)-MIN(ROW(アクティビティ))+1),ROWS($B$3:B87)))&CHAR(10),\"\")","v":""},null,{"$f":"IFERROR(INDEX(アクティビティ,SMALL(IF(ターゲット=$H$2,ROW(アクティビティ)-MIN(ROW(アクティビティ))+1),ROWS($B$3:B87)))&CHAR(10),\"\")","v":""}]
[null,{"$f":"IFERROR(INDEX(アクティビティ,SMALL(IF(ターゲット=$B$2,ROW(アクティビティ)-MIN(ROW(アクティビティ))+1),ROWS($B$3:B88)))&\" \"&CHAR(10)&(INDEX(結果,SMALL(IF(ターゲット=$B$2,ROW(結果)-MIN(ROW(結果))+1),ROWS($B$3:B88))))&CHAR(10),\"\")","v":""},null,{"$f":"IFERROR(INDEX(アクティビティ,SMALL(IF(ターゲット=$D$2,ROW(アクティビティ)-MIN(ROW(アクティビティ))+1),ROWS($B$3:B88)))&CHAR(10),\"\")","v":""},null,{"$f":"IFERROR(INDEX(アクティビティ,SMALL(IF(ターゲット=$F$2,ROW(アクティビティ)-MIN(ROW(アクティビティ))+1),ROWS($B$3:B88)))&CHAR(10),\"\")","v":""},null,{"$f":"IFERROR(INDEX(アクティビティ,SMALL(IF(ターゲット=$H$2,ROW(アクティビティ)-MIN(ROW(アクティビティ))+1),ROWS($B$3:B88)))&CHAR(10),\"\")","v":""}]
[null,{"$f":"IFERROR(INDEX(アクティビティ,SMALL(IF(ターゲット=$B$2,ROW(アクティビティ)-MIN(ROW(アクティビティ))+1),ROWS($B$3:B89)))&\" \"&CHAR(10)&(INDEX(結果,SMALL(IF(ターゲット=$B$2,ROW(結果)-MIN(ROW(結果))+1),ROWS($B$3:B89))))&CHAR(10),\"\")","v":""},null,{"$f":"IFERROR(INDEX(アクティビティ,SMALL(IF(ターゲット=$D$2,ROW(アクティビティ)-MIN(ROW(アクティビティ))+1),ROWS($B$3:B89)))&CHAR(10),\"\")","v":""},null,{"$f":"IFERROR(INDEX(アクティビティ,SMALL(IF(ターゲット=$F$2,ROW(アクティビティ)-MIN(ROW(アクティビティ))+1),ROWS($B$3:B89)))&CHAR(10),\"\")","v":""},null,{"$f":"IFERROR(INDEX(アクティビティ,SMALL(IF(ターゲット=$H$2,ROW(アクティビティ)-MIN(ROW(アクティビティ))+1),ROWS($B$3:B89)))&CHAR(10),\"\")","v":""}]
[null,{"$f":"IFERROR(INDEX(アクティビティ,SMALL(IF(ターゲット=$B$2,ROW(アクティビティ)-MIN(ROW(アクティビティ))+1),ROWS($B$3:B90)))&\" \"&CHAR(10)&(INDEX(結果,SMALL(IF(ターゲット=$B$2,ROW(結果)-MIN(ROW(結果))+1),ROWS($B$3:B90))))&CHAR(10),\"\")","v":""},null,{"$f":"IFERROR(INDEX(アクティビティ,SMALL(IF(ターゲット=$D$2,ROW(アクティビティ)-MIN(ROW(アクティビティ))+1),ROWS($B$3:B90)))&CHAR(10),\"\")","v":""},null,{"$f":"IFERROR(INDEX(アクティビティ,SMALL(IF(ターゲット=$F$2,ROW(アクティビティ)-MIN(ROW(アクティビティ))+1),ROWS($B$3:B90)))&CHAR(10),\"\")","v":""},null,{"$f":"IFERROR(INDEX(アクティビティ,SMALL(IF(ターゲット=$H$2,ROW(アクティビティ)-MIN(ROW(アクティビティ))+1),ROWS($B$3:B90)))&CHAR(10),\"\")","v":""}]
[null,{"$f":"IFERROR(INDEX(アクティビティ,SMALL(IF(ターゲット=$B$2,ROW(アクティビティ)-MIN(ROW(アクティビティ))+1),ROWS($B$3:B91)))&\" \"&CHAR(10)&(INDEX(結果,SMALL(IF(ターゲット=$B$2,ROW(結果)-MIN(ROW(結果))+1),ROWS($B$3:B91))))&CHAR(10),\"\")","v":""},null,{"$f":"IFERROR(INDEX(アクティビティ,SMALL(IF(ターゲット=$D$2,ROW(アクティビティ)-MIN(ROW(アクティビティ))+1),ROWS($B$3:B91)))&CHAR(10),\"\")","v":""},null,{"$f":"IFERROR(INDEX(アクティビティ,SMALL(IF(ターゲット=$F$2,ROW(アクティビティ)-MIN(ROW(アクティビティ))+1),ROWS($B$3:B91)))&CHAR(10),\"\")","v":""},null,{"$f":"IFERROR(INDEX(アクティビティ,SMALL(IF(ターゲット=$H$2,ROW(アクティビティ)-MIN(ROW(アクティビティ))+1),ROWS($B$3:B91)))&CHAR(10),\"\")","v":""}]
[null,{"$f":"IFERROR(INDEX(アクティビティ,SMALL(IF(ターゲット=$B$2,ROW(アクティビティ)-MIN(ROW(アクティビティ))+1),ROWS($B$3:B92)))&\" \"&CHAR(10)&(INDEX(結果,SMALL(IF(ターゲット=$B$2,ROW(結果)-MIN(ROW(結果))+1),ROWS($B$3:B92))))&CHAR(10),\"\")","v":""},null,{"$f":"IFERROR(INDEX(アクティビティ,SMALL(IF(ターゲット=$D$2,ROW(アクティビティ)-MIN(ROW(アクティビティ))+1),ROWS($B$3:B92)))&CHAR(10),\"\")","v":""},null,{"$f":"IFERROR(INDEX(アクティビティ,SMALL(IF(ターゲット=$F$2,ROW(アクティビティ)-MIN(ROW(アクティビティ))+1),ROWS($B$3:B92)))&CHAR(10),\"\")","v":""},null,{"$f":"IFERROR(INDEX(アクティビティ,SMALL(IF(ターゲット=$H$2,ROW(アクティビティ)-MIN(ROW(アクティビティ))+1),ROWS($B$3:B92)))&CHAR(10),\"\")","v":""}]
[null,{"$f":"IFERROR(INDEX(アクティビティ,SMALL(IF(ターゲット=$B$2,ROW(アクティビティ)-MIN(ROW(アクティビティ))+1),ROWS($B$3:B93)))&\" \"&CHAR(10)&(INDEX(結果,SMALL(IF(ターゲット=$B$2,ROW(結果)-MIN(ROW(結果))+1),ROWS($B$3:B93))))&CHAR(10),\"\")","v":""},null,{"$f":"IFERROR(INDEX(アクティビティ,SMALL(IF(ターゲット=$D$2,ROW(アクティビティ)-MIN(ROW(アクティビティ))+1),ROWS($B$3:B93)))&CHAR(10),\"\")","v":""},null,{"$f":"IFERROR(INDEX(アクティビティ,SMALL(IF(ターゲット=$F$2,ROW(アクティビティ)-MIN(ROW(アクティビティ))+1),ROWS($B$3:B93)))&CHAR(10),\"\")","v":""},null,{"$f":"IFERROR(INDEX(アクティビティ,SMALL(IF(ターゲット=$H$2,ROW(アクティビティ)-MIN(ROW(アクティビティ))+1),ROWS($B$3:B93)))&CHAR(10),\"\")","v":""}]
[null,{"$f":"IFERROR(INDEX(アクティビティ,SMALL(IF(ターゲット=$B$2,ROW(アクティビティ)-MIN(ROW(アクティビティ))+1),ROWS($B$3:B94)))&\" \"&CHAR(10)&(INDEX(結果,SMALL(IF(ターゲット=$B$2,ROW(結果)-MIN(ROW(結果))+1),ROWS($B$3:B94))))&CHAR(10),\"\")","v":""},null,{"$f":"IFERROR(INDEX(アクティビティ,SMALL(IF(ターゲット=$D$2,ROW(アクティビティ)-MIN(ROW(アクティビティ))+1),ROWS($B$3:B94)))&CHAR(10),\"\")","v":""},null,{"$f":"IFERROR(INDEX(アクティビティ,SMALL(IF(ターゲット=$F$2,ROW(アクティビティ)-MIN(ROW(アクティビティ))+1),ROWS($B$3:B94)))&CHAR(10),\"\")","v":""},null,{"$f":"IFERROR(INDEX(アクティビティ,SMALL(IF(ターゲット=$H$2,ROW(アクティビティ)-MIN(ROW(アクティビティ))+1),ROWS($B$3:B94)))&CHAR(10),\"\")","v":""}]
[null,{"$f":"IFERROR(INDEX(アクティビティ,SMALL(IF(ターゲット=$B$2,ROW(アクティビティ)-MIN(ROW(アクティビティ))+1),ROWS($B$3:B95)))&\" \"&CHAR(10)&(INDEX(結果,SMALL(IF(ターゲット=$B$2,ROW(結果)-MIN(ROW(結果))+1),ROWS($B$3:B95))))&CHAR(10),\"\")","v":""},null,{"$f":"IFERROR(INDEX(アクティビティ,SMALL(IF(ターゲット=$D$2,ROW(アクティビティ)-MIN(ROW(アクティビティ))+1),ROWS($B$3:B95)))&CHAR(10),\"\")","v":""},null,{"$f":"IFERROR(INDEX(アクティビティ,SMALL(IF(ターゲット=$F$2,ROW(アクティビティ)-MIN(ROW(アクティビティ))+1),ROWS($B$3:B95)))&CHAR(10),\"\")","v":""},null,{"$f":"IFERROR(INDEX(アクティビティ,SMALL(IF(ターゲット=$H$2,ROW(アクティビティ)-MIN(ROW(アクティビティ))+1),ROWS($B$3:B95)))&CHAR(10),\"\")","v":""}]
[null,{"$f":"IFERROR(INDEX(アクティビティ,SMALL(IF(ターゲット=$B$2,ROW(アクティビティ)-MIN(ROW(アクティビティ))+1),ROWS($B$3:B96)))&\" \"&CHAR(10)&(INDEX(結果,SMALL(IF(ターゲット=$B$2,ROW(結果)-MIN(ROW(結果))+1),ROWS($B$3:B96))))&CHAR(10),\"\")","v":""},null,{"$f":"IFERROR(INDEX(アクティビティ,SMALL(IF(ターゲット=$D$2,ROW(アクティビティ)-MIN(ROW(アクティビティ))+1),ROWS($B$3:B96)))&CHAR(10),\"\")","v":""},null,{"$f":"IFERROR(INDEX(アクティビティ,SMALL(IF(ターゲット=$F$2,ROW(アクティビティ)-MIN(ROW(アクティビティ))+1),ROWS($B$3:B96)))&CHAR(10),\"\")","v":""},null,{"$f":"IFERROR(INDEX(アクティビティ,SMALL(IF(ターゲット=$H$2,ROW(アクティビティ)-MIN(ROW(アクティビティ))+1),ROWS($B$3:B96)))&CHAR(10),\"\")","v":""}]
[null,{"$f":"IFERROR(INDEX(アクティビティ,SMALL(IF(ターゲット=$B$2,ROW(アクティビティ)-MIN(ROW(アクティビティ))+1),ROWS($B$3:B97)))&\" \"&CHAR(10)&(INDEX(結果,SMALL(IF(ターゲット=$B$2,ROW(結果)-MIN(ROW(結果))+1),ROWS($B$3:B97))))&CHAR(10),\"\")","v":""},null,{"$f":"IFERROR(INDEX(アクティビティ,SMALL(IF(ターゲット=$D$2,ROW(アクティビティ)-MIN(ROW(アクティビティ))+1),ROWS($B$3:B97)))&CHAR(10),\"\")","v":""},null,{"$f":"IFERROR(INDEX(アクティビティ,SMALL(IF(ターゲット=$F$2,ROW(アクティビティ)-MIN(ROW(アクティビティ))+1),ROWS($B$3:B97)))&CHAR(10),\"\")","v":""},null,{"$f":"IFERROR(INDEX(アクティビティ,SMALL(IF(ターゲット=$H$2,ROW(アクティビティ)-MIN(ROW(アクティビティ))+1),ROWS($B$3:B97)))&CHAR(10),\"\")","v":""}]
[null,{"$f":"IFERROR(INDEX(アクティビティ,SMALL(IF(ターゲット=$B$2,ROW(アクティビティ)-MIN(ROW(アクティビティ))+1),ROWS($B$3:B98)))&\" \"&CHAR(10)&(INDEX(結果,SMALL(IF(ターゲット=$B$2,ROW(結果)-MIN(ROW(結果))+1),ROWS($B$3:B98))))&CHAR(10),\"\")","v":""},null,{"$f":"IFERROR(INDEX(アクティビティ,SMALL(IF(ターゲット=$D$2,ROW(アクティビティ)-MIN(ROW(アクティビティ))+1),ROWS($B$3:B98)))&CHAR(10),\"\")","v":""},null,{"$f":"IFERROR(INDEX(アクティビティ,SMALL(IF(ターゲット=$F$2,ROW(アクティビティ)-MIN(ROW(アクティビティ))+1),ROWS($B$3:B98)))&CHAR(10),\"\")","v":""},null,{"$f":"IFERROR(INDEX(アクティビティ,SMALL(IF(ターゲット=$H$2,ROW(アクティビティ)-MIN(ROW(アクティビティ))+1),ROWS($B$3:B98)))&CHAR(10),\"\")","v":""}]
[null,{"$f":"IFERROR(INDEX(アクティビティ,SMALL(IF(ターゲット=$B$2,ROW(アクティビティ)-MIN(ROW(アクティビティ))+1),ROWS($B$3:B99)))&\" \"&CHAR(10)&(INDEX(結果,SMALL(IF(ターゲット=$B$2,ROW(結果)-MIN(ROW(結果))+1),ROWS($B$3:B99))))&CHAR(10),\"\")","v":""},null,{"$f":"IFERROR(INDEX(アクティビティ,SMALL(IF(ターゲット=$D$2,ROW(アクティビティ)-MIN(ROW(アクティビティ))+1),ROWS($B$3:B99)))&CHAR(10),\"\")","v":""},null,{"$f":"IFERROR(INDEX(アクティビティ,SMALL(IF(ターゲット=$F$2,ROW(アクティビティ)-MIN(ROW(アクティビティ))+1),ROWS($B$3:B99)))&CHAR(10),\"\")","v":""},null,{"$f":"IFERROR(INDEX(アクティビティ,SMALL(IF(ターゲット=$H$2,ROW(アクティビティ)-MIN(ROW(アクティビティ))+1),ROWS($B$3:B99)))&CHAR(10),\"\")","v":""}]
[null,{"$f":"IFERROR(INDEX(アクティビティ,SMALL(IF(ターゲット=$B$2,ROW(アクティビティ)-MIN(ROW(アクティビティ))+1),ROWS($B$3:B100)))&\" \"&CHAR(10)&(INDEX(結果,SMALL(IF(ターゲット=$B$2,ROW(結果)-MIN(ROW(結果))+1),ROWS($B$3:B100))))&CHAR(10),\"\")","v":""},null,{"$f":"IFERROR(INDEX(アクティビティ,SMALL(IF(ターゲット=$D$2,ROW(アクティビティ)-MIN(ROW(アクティビティ))+1),ROWS($B$3:B100)))&CHAR(10),\"\")","v":""},null,{"$f":"IFERROR(INDEX(アクティビティ,SMALL(IF(ターゲット=$F$2,ROW(アクティビティ)-MIN(ROW(アクティビティ))+1),ROWS($B$3:B100)))&CHAR(10),\"\")","v":""},null,{"$f":"IFERROR(INDEX(アクティビティ,SMALL(IF(ターゲット=$H$2,ROW(アクティビティ)-MIN(ROW(アクティビティ))+1),ROWS($B$3:B100)))&CHAR(10),\"\")","v":""}]

{"sheet":"詳細情報","index":2,"n_rows":6,"n_cols":1,"rows_kept":6}
["このブックについて"]
["スクリーン リーダーのガイド"]
["このブックには 3 つのワークシートがあります。\n\nロードマップ データ\nアジャイル ロードマップ\n詳細情報\n\n各ワークシートの説明は、各ワークシートの A 列のセル A1 から始まります。非表示のテキストで書き込まれます。各手順では、その行に含まれる情報について説明しています。明示的な指示がない限り、後続の各手順はセル A2、セル A3 といった順に続きます。たとえば、説明テキストに、次の手順について \"セル A6 に続く\" と記載されている場合があります。\n\n非表示のテキストは印刷されません。\n\n任意のワークシートからこれらの説明を削除する場合は、列 A を削除するだけです。\n"]
["このブックについて"]
["ロードマップ データ ワークシートにマイルストーンの情報を入力します。優先度の高い順に (優先度が最も高いアイテムが一番上にリストされるように) 完了、現在、近い将来、将来の各ビューをキャプチャする場合は、必ず、優先度で並べ替えてからマイルストーンで並べ替えてください。アジャイル ロードマップ ワークシートのロードマップは、自動的に更新されます。\n"]
["これは、このワークシートにおける最後の説明です。"]